Workbook

Sheet Navigation
K7: Shetkari Krushi Seva Kendra
L8: Stock and Sales FOR THE PERIOD 01-Apr-2021 TO 31-Jul-2021

Sheet Dealer Report
A1: Shetkari Krushi Seva Kendra
A2: Bayer Crop
A3: Stock Category Summary
A4: 1-Apr-21 to 31-Jul-21
B5: Bayer Crop
B6: Shetkari Krushi Seva Kendra (21-22)
A7: Particulars | B7: 1-Apr-21 to 31-Jul-21
B8: Opening Balance | C8: Inwards | D8: Outwards | E8: Closing Balance
B9: Quantity | C9: Quantity | D9: Quantity | E9: Quantity
A10: Admire 150gm | F10: =B10+C10-D10 -> 0
A11: Admire 2gm | B11: 103 | C11: 1000 | D11: 732 | E11: 371 | F11: =B11+C11-D11 -> 371
A12: Admire 30gm | C12: 150 | D12: 131 | E12: 19 | F12: 19
A13: Admire 75gm | C13: 60 | D13: 2 | E13: 58 | F13: 58
A14: Aliette 100gm | B14: 61 | D14: 61 | F14: 0
A15: Aliette 1Kg | B15: 4 | C15: 20 | D15: 21 | E15: 3 | F15: 3
A16: Aliette 250gm | B16: 30 | D16: 24 | E16: 6 | F16: 6
A17: Aliette 500Gm | B17: 14 | C17: 20 | D17: 30 | E17: 4 | F17: 4
A18: Ambition 1ltr | C18: 50 | D18: 48 | E18: 2 | F18: 2
A19: Ambition 250ml | C19: 320 | D19: 41 | E19: 279 | F19: 279
A20: Ambition 500ml | C20: 100 | D20: 59 | E20: 41 | F20: 41
A21: Antracol 100gm | B21: 23 | C21: 150 | D21: 50 | E21: 123 | F21: 123
A22: Antracol 1kg | F22: 0
A23: Antracol 250gm | B23: 44 | C23: 240 | D23: 155 | E23: 129 | F23: 129
A24: Antracol 500gm | B24: 1 | C24: 120 | D24: 116 | E24: 5 | F24: 5
A25: Belt Expert 100ml | B25: 13 | D25: 13 | F25: 0
A26: Bt Cotton Surpass Firstclass 7149 BG II 450gm | F26: 0
A27: Bt Cotton Surpass Superb BG II 450gm | F27: 0
A28: Confidor 100ml | C28: 150 | D28: 42 | E28: 108 | F28: 108
A29: Confidor 250ml | B29: 8 | C29: 40 | D29: 18 | E29: 30 | F29: 30
A30: Confidor 500ml | C30: 20 | D30: 6 | E30: 14 | F30: 14
A31: Confidor 50ml | C31: 100 | D31: 51 | E31: 49 | F31: 49
A32: Decis 100 100ml | F32: 0
A33: Decis 100 250ml | B33: 24 | D33: 17 | E33: 7 | F33: 7
A34: Ethrel 100ml | C34: 50 | D34: 11 | E34: 39 | F34: 39
A35: Ethrel 500ml | F35: 0
A36: Evergol Xtend 100ml | B36: 4 | C36: 250 | D36: 126 | E36: 128 | F36: 128
A37: Evergol Xtend 40ml | B37: 46 | C37: 500 | D37: 128 | E37: 418 | F37: 418
A38: Fame 100ml | F38: 0
A39: Fame 10ml | F39: 0
A40: Fame 250ml | B40: 1 | D40: 1 | F40: 0
A41: Fame 50 Ml | F41: 0
A42: Fenos Quick 100ml | B42: 99 | C42: 250 | D42: 16 | E42: 333 | F42: 333
A43: Folicur 100ml | B43: 12 | C43: 150 | D43: 102 | E43: 60 | F43: 60
A44: Folicur 250ml | B44: 20 | C44: 40 | D44: 33 | E44: 27 | F44: 27
A45: Folicur 500 Ml | F45: 0
A46: Gaucho 100 Ml | B46: 273 | C46: 750 | D46: 809 | E46: 214 | F46: 214
A47: Gaucho 250ml | C47: 40 | D47: 40 | F47: 0
A48: Gaucho 50ml | B48: 140 | C48: 2500 | D48: 1125 | E48: 1515 | F48: 1515
A49: Gaucho 9ml | C49: 500 | D49: 107 | E49: 393 | F49: 393
A50: Infinito 100ml | B50: 5 | D50: 3 | E50: 2 | F50: 2
A51: Infinito 500ml | B51: 6 | D51: 3 | E51: 3 | F51: 3
A52: Jump 2gm | C52: 1600 | D52: 684 | E52: 916 | F52: 916
A53: Larvin 250gm | F53: 0
A54: Laudis 115ml | B54: 1 | E54: 1 | F54: 1
A55: Lesenta 100gm | B55: 29 | D55: 8 | E55: 21 | F55: 21
A56: Luna Experience 100ml | C56: 250 | D56: 167 | E56: 83 | F56: 83
A57: Luna Experience 1li | C57: 10 | E57: 10 | F57: 10
A58: Luna Experience 250ml | C58: 201 | D58: 91 | E58: 110 | F58: 110
A59: Melody Duo 400gm | B59: 6 | E59: 6 | F59: 6
A60: Melody Duo 800gm | F60: 0
A61: Movento Energy 100ml | B61: 13 | D61: 13 | F61: 0
A62: Movento Energy 250ml | F62: 0
A63: Nativo 100gm | B63: 3 | C63: 150 | D63: 128 | E63: 25 | F63: 25
A64: Nativo 10gm | B64: 144 | C64: 200 | D64: 286 | E64: 58 | F64: 58
A65: Nativo 250 Gm | B65: 26 | D65: 18 | E65: 8 | F65: 8
A66: Nativo 50gm | B66: 41 | C66: 200 | D66: 213 | E66: 28 | F66: 28
A67: Oberon 100ml | B67: 50 | D67: 32 | E67: 18 | F67: 18
A68: Oberon 200ml | B68: 40 | D68: 6 | E68: 34 | F68: 34
A69: Planofix 100ml | B69: 21 | C69: 50 | D69: 18 | E69: 53 | F69: 53
A70: Planofix 250ml | B70: 10 | C70: 40 | D70: 9 | E70: 41 | F70: 41
A71: Regent 100 Gm | B71: 26 | C71: 50 | D71: 37 | E71: 39 | F71: 39
A72: Regent 1kg | B72: 2 | D72: 2 | F72: 0
A73: Regent 250 Gm | B73: 21 | C73: 40 | D73: 36 | E73: 25 | F73: 25
A74: Regent 500 Gm | C74: 40 | D74: 6 | E74: 34 | F74: 34
A75: Regent 5kg | B75: 60 | D75: 21 | E75: 39 | F75: =B75+C75-D75 -> 39
A76: Regent Gold 100ml | F76: 0
A77: Regent Gold 250ml | F77: 0
A78: Regent Ultra 4kg | F78: 0
A79: Roundup 250ml | B79: 122 | D79: 74 | E79: 48 | F79: 48
A80: Sectin 100gm | B80: 1 | D80: 1 | F80: 0
A81: Sectin 1kg | F81: 0
A82: Sectin 600gm | B82: 3 | D82: 3 | F82: 0
A83: Sencor 100gm | B83: 65 | D83: 65 | F83: 0
A84: Sencor 500gm | B84: 262 | D84: 262 | F84: 0
A85: Solomon 100ml | B85: 11 | C85: 600 | D85: 212 | E85: 399 | F85: 399
A86: Solomon 1lit | B86: 17 | C86: 100 | D86: 86 | E86: 31 | F86: 31
A87: Solomon 250ml | B87: 65 | C87: 400 | D87: 388 | E87: 77 | F87: 77
A88: Solomon 500ml | B88: 27 | C88: 500 | D88: 303 | E88: 224 | F88: 224
A89: Super Confidor 100ml | B89: 25 | C89: 100 | D89: 50 | E89: 75 | F89: 75
A90: Super Confidor 250ml | C90: 40 | E90: 40 | F90: 40
A91: Super Confidor 50ml | C91: 150 | D91: 92 | E91: 58 | F91: 58
A92: Topstar 100gm | F92: 0
A93: Velum Prime 500ml | B93: 3 | C93: 20 | D93: 12 | E93: 11 | F93: 11
A94: TOTAl | B94: =SUM(B10:B93) -> 2025 | C94: =SUM(C10:C93) -> 12311 | D94: =SUM(D10:D93) -> 7444 | E94: =SUM(E10:E93) -> 6892 | F94: 6892

Sheet Dealer Report working
A1: Particulars | B1: Opening Qty | C1: Purchase Qty | D1: Sales Qty | E1: CLSG | F1: Master Name | K1: Values
A2: Admire 150gm | F2: ADMIRE (T) WG70 30X150GR BOT IN | J2: Row Labels | K2: Sum of Opening Qty | L2: Sum of Purchase Qty | M2: Sum of Sales Qty | N2: Sum of CLSG
A3: Admire 2gm | B3: 103 | C3: 1000 | D3: 732 | E3: 371 | F3: ADMIRE WG70 125X(8X2GR) BAG IN | J3: ADMIRE (T) WG70 150X30GR BOT IN | L3: 150 | M3: 131 | N3: 19
A4: Admire 30gm | C4: 150 | D4: 131 | E4: 19 | F4: ADMIRE (T) WG70 150X30GR BOT IN | J4: ADMIRE (T) WG70 30X150GR BOT IN
A5: Admire 75gm | C5: 60 | D5: 2 | E5: 58 | F5: ADMIRE (T) WG70 60X75GR BOT IN | J5: ADMIRE (T) WG70 60X75GR BOT IN | L5: 60 | M5: 2 | N5: 58
A6: Aliette 100gm | B6: 61 | D6: 61 | F6: ALIETTE WP80 40X100GR BAG IN | J6: ADMIRE WG70 125X(8X2GR) BAG IN | K6: 103 | L6: 1000 | M6: 732 | N6: 371
A7: Aliette 1Kg | B7: 4 | C7: 20 | D7: 21 | E7: 3 | F7: ALIETTE WP80 10X1KG BAG IN | J7: ALIETTE WP80 10X1KG BAG IN | K7: 4 | L7: 20 | M7: 21 | N7: 3
A8: Aliette 250gm | B8: 30 | D8: 24 | E8: 6 | F8: ALIETTE WP80 20X250GR BAG IN | J8: ALIETTE WP80 20X250GR BAG IN | K8: 30 | M8: 24 | N8: 6
A9: Aliette 500Gm | B9: 14 | C9: 20 | D9: 30 | E9: 4 | F9: ALIETTE WP80 20X500GR BAG IN | J9: ALIETTE WP80 20X500GR BAG IN | K9: 14 | L9: 20 | M9: 30 | N9: 4
A10: Ambition 1ltr | C10: 50 | D10: 48 | E10: 2 | F10: AMBITION 10X1L BOT IN | J10: ALIETTE WP80 40X100GR BAG IN | K10: 61 | M10: 61
A11: Ambition 250ml | C11: 320 | D11: 41 | E11: 279 | F11: AMBITION 40X250ML BOT IN | J11: AMBITION 10X1L BOT IN | L11: 50 | M11: 48 | N11: 2
A12: Ambition 500ml | C12: 100 | D12: 59 | E12: 41 | F12: AMBITION 20X500ML BOT IN | J12: AMBITION 20X500ML BOT IN | L12: 100 | M12: 59 | N12: 41
A13: Antracol 100gm | B13: 23 | C13: 150 | D13: 50 | E13: 123 | F13: ANTRACOL (T) WP70 50X100GR BAG IN | J13: AMBITION 40X250ML BOT IN | L13: 320 | M13: 41 | N13: 279
A14: Antracol 1kg | F14: ANTRACOL (T) WP70 10X1KG BAG IN | J14: ANTRACOL (T) WP70 10X1KG BAG IN
A15: Antracol 250gm | B15: 44 | C15: 240 | D15: 155 | E15: 129 | F15: ANTRACOL (T) WP70 40X250GR BAG IN | J15: ANTRACOL (T) WP70 20X500GR BAG IN | K15: 1 | L15: 120 | M15: 116 | N15: 5
A16: Antracol 500gm | B16: 1 | C16: 120 | D16: 116 | E16: 5 | F16: ANTRACOL (T) WP70 20X500GR BAG IN | J16: ANTRACOL (T) WP70 40X250GR BAG IN | K16: 44 | L16: 240 | M16: 155 | N16: 129
A17: Belt Expert 100ml | B17: 13 | D17: 13 | F17: BELT EXPERT SC480 50X100ML BOT IN | J17: ANTRACOL (T) WP70 50X100GR BAG IN | K17: 23 | L17: 150 | M17: 50 | N17: 123
A18: Bt Cotton Surpass Firstclass 7149 BG II 450gm | F18: DISCOUNTINUE PRODUCT | J18: BELT EXPERT SC480 50X100ML BOT IN | K18: 13 | M18: 13
A19: Bt Cotton Surpass Superb BG II 450gm | F19: SURPASS SUPERB BG2 20X450G BAG IN | J19: CONFIDOR (T) SL200 100X50ML BOT IN | L19: 100 | M19: 51 | N19: 49
A20: Confidor 100ml | C20: 150 | D20: 42 | E20: 108 | F20: CONFIDOR (T) SL200 50X100ML BOT IN | J20: CONFIDOR (T) SL200 20X250ML BOT IN | K20: 8 | L20: 40 | M20: 18 | N20: 30
A21: Confidor 250ml | B21: 8 | C21: 40 | D21: 18 | E21: 30 | F21: CONFIDOR (T) SL200 20X250ML BOT IN | J21: CONFIDOR (T) SL200 20X500ML BOT IN | L21: 20 | M21: 6 | N21: 14
A22: Confidor 500ml | C22: 20 | D22: 6 | E22: 14 | F22: CONFIDOR (T) SL200 20X500ML BOT IN | J22: CONFIDOR (T) SL200 50X100ML BOT IN | L22: 150 | M22: 42 | N22: 108
A23: Confidor 50ml | C23: 100 | D23: 51 | E23: 49 | F23: CONFIDOR (T) SL200 100X50ML BOT IN | J23: CONFIDOR SUPER (T) SC350 20X250ML BOT IN | L23: 40 | N23: 40
A24: Decis 100 100ml | F24: DECIS EC101-2 50X100ML BOX IN | J24: CONFIDOR SUPER (T) SC350 50X100ML BOT IN | K24: 25 | L24: 100 | M24: 50 | N24: 75
A25: Decis 100 250ml | B25: 24 | D25: 17 | E25: 7 | F25: DECIS EC 28 40X250ML BOT IN | J25: CONFIDOR SUPER (T) SC350 50X50ML BOT IN | L25: 150 | M25: 92 | N25: 58
A26: Ethrel 100ml | C26: 50 | D26: 11 | E26: 39 | F26: ETHREL SL39 50X100ML BOT IN | J26: DECIS EC 28 40X250ML BOT IN | K26: 24 | M26: 17 | N26: 7
A27: Ethrel 500ml | F27: ETHREL SL39 20X500ML BOT IN | J27: DECIS EC101-2 50X100ML BOX IN
A28: Evergol Xtend 100ml | B28: 4 | C28: 250 | D28: 126 | E28: 128 | F28: EVERGOL XTEND FS308 50X100ML BOT IN | J28: DISCOUNTINUE PRODUCT | K28: 140 | L28: 2500 | M28: 1125 | N28: 1515
A29: Evergol Xtend 40ml | B29: 46 | C29: 500 | D29: 128 | E29: 418 | F29: EVERGOL XTEND FS308 100X40ML BOT IN | J29: ETHREL SL39 20X500ML BOT IN
A30: Fame 100ml | F30: FAME (T) SC480 20X100ML BOT IN | J30: ETHREL SL39 50X100ML BOT IN | L30: 50 | M30: 11 | N30: 39
A31: Fame 10ml | F31: FAME (T) SC480 10X(20X10ML) BOT IN | J31: EVERGOL XTEND FS308 100X40ML BOT IN | K31: 46 | L31: 500 | M31: 128 | N31: 418
A32: Fame 250ml | B32: 1 | D32: 1 | F32: FAME (T) SC480 8X250ML BOT IN | J32: EVERGOL XTEND FS308 50X100ML BOT IN | K32: 4 | L32: 250 | M32: 126 | N32: 128
A33: Fame 50 Ml | F33: FAME (T) SC480 40X50ML BOT IN | J33: FAME (T) SC480 10X(20X10ML) BOT IN
A34: Fenos Quick 100ml | B34: 99 | C34: 250 | D34: 16 | E34: 333 | F34: FENOS QUICK SC150 50X100ML BOT IN | J34: FAME (T) SC480 20X100ML BOT IN
A35: Folicur 100ml | B35: 12 | C35: 150 | D35: 102 | E35: 60 | F35: FOLICUR (T) EC250 50X100ML BOT IN | J35: FAME (T) SC480 40X50ML BOT IN
A36: Folicur 250ml | B36: 20 | C36: 40 | D36: 33 | E36: 27 | F36: FOLICUR (T) EC250 40X250ML BOT IN | J36: FAME (T) SC480 8X250ML BOT IN | K36: 1 | M36: 1
A37: Folicur 500 Ml | F37: FOLICUR (T) EC250 20X500ML BOT IN | J37: FENOS QUICK SC150 50X100ML BOT IN | K37: 99 | L37: 250 | M37: 16 | N37: 333
A38: Gaucho 100 Ml | B38: 273 | C38: 750 | D38: 809 | E38: 214 | F38: GAUCHO FS600 50X100ML BOT IN | J38: FOLICUR (T) EC250 20X500ML BOT IN
A39: Gaucho 250ml | C39: 40 | D39: 40 | F39: GAUCHO FS600 40X250ML BOT IN | J39: FOLICUR (T) EC250 40X250ML BOT IN | K39: 20 | L39: 40 | M39: 33 | N39: 27
A40: Gaucho 50ml | B40: 140 | C40: 2500 | D40: 1125 | E40: 1515 | F40: DISCOUNTINUE PRODUCT | J40: FOLICUR (T) EC250 50X100ML BOT IN | K40: 12 | L40: 150 | M40: 102 | N40: 60
A41: Gaucho 9ml | C41: 500 | D41: 107 | E41: 393 | F41: GAUCHO FS600 5X(20X9)ML BOT IN | J41: GAUCHO FS600 40X250ML BOT IN | L41: 40 | M41: 40
A42: Infinito 100ml | B42: 5 | D42: 3 | E42: 2 | F42: INFINITO SC687 5 50X100ML BOT IN | J42: GAUCHO FS600 50X100ML BOT IN | K42: 273 | L42: 750 | M42: 809 | N42: 214
A43: Infinito 500ml | B43: 6 | D43: 3 | E43: 3 | F43: INFINITO SC687 5 20X500ML BOT IN | J43: GAUCHO FS600 5X(20X9)ML BOT IN | L43: 500 | M43: 107 | N43: 393
A44: Jump 2gm | C44: 1600 | D44: 684 | E44: 916 | F44: JUMP WG80 160X(10X2GR) BAG IN | J44: INFINITO SC687 5 20X500ML BOT IN | K44: 6 | M44: 3 | N44: 3
A45: Larvin 250gm | F45: LARVIN (T) WP75 20X250GR BAG IN | J45: INFINITO SC687 5 50X100ML BOT IN | K45: 5 | M45: 3 | N45: 2
A46: Laudis 115ml | B46: 1 | E46: 1 | F46: LAUDIS SC630 8X115ML BOT IN | J46: JUMP WG80 160X(10X2GR) BAG IN | L46: 1600 | M46: 684 | N46: 916
A47: Lesenta 100gm | B47: 29 | D47: 8 | E47: 21 | F47: LESENTA WG80 50X100GR BAG IN | J47: LARVIN (T) WP75 20X250GR BAG IN
A48: Luna Experience 100ml | C48: 250 | D48: 167 | E48: 83 | F48: LUNA EXPERIENCE SC400 50X100ML BOT IN | J48: LAUDIS SC630 8X115ML BOT IN | K48: 1 | N48: 1
A49: Luna Experience 1li | C49: 10 | E49: 10 | F49: LUNA EXPERIENCE SC400 10X1L BOT IN | J49: LESENTA WG80 50X100GR BAG IN | K49: 29 | M49: 8 | N49: 21
A50: Luna Experience 250ml | C50: 201 | D50: 91 | E50: 110 | F50: LUNA EXPERIENCE SC400 40X250ML BOT IN | J50: LUNA EXPERIENCE SC400 10X1L BOT IN | L50: 10 | N50: 10
A51: Melody Duo 400gm | B51: 6 | E51: 6 | F51: MELODY DUO WP66 8 10X400GR BAG IN | J51: LUNA EXPERIENCE SC400 40X250ML BOT IN | L51: 201 | M51: 91 | N51: 110
A52: Melody Duo 800gm | F52: MELODY DUO WP66 8 10X800G BAG IN | J52: LUNA EXPERIENCE SC400 50X100ML BOT IN | L52: 250 | M52: 167 | N52: 83
A53: Movento Energy 100ml | B53: 13 | D53: 13 | F53: MOVENTO ENERGY SC240 50X100ML BOT IN | J53: MELODY DUO WP66 8 10X400GR BAG IN | K53: 6 | N53: 6
A54: Movento Energy 250ml | F54: MOVENTO ENERGY SC240 40X250ML BOT IN | J54: MELODY DUO WP66 8 10X800G BAG IN
A55: Nativo 100gm | B55: 3 | C55: 150 | D55: 128 | E55: 25 | F55: NATIVO WG75 50X100GR BAG IN | J55: MOVENTO ENERGY SC240 40X250ML BOT IN
A56: Nativo 10gm | B56: 144 | C56: 200 | D56: 286 | E56: 58 | F56: NATIVO WG75 20X(10X10GR) BAG IN | J56: MOVENTO ENERGY SC240 50X100ML BOT IN | K56: 13 | M56: 13
A57: Nativo 250 Gm | B57: 26 | D57: 18 | E57: 8 | F57: NATIVO WG75 40X250GR BAG IN | J57: NATIVO WG75 100X50GR BAG IN | K57: 41 | L57: 200 | M57: 213 | N57: 28
A58: Nativo 50gm | B58: 41 | C58: 200 | D58: 213 | E58: 28 | F58: NATIVO WG75 100X50GR BAG IN | J58: NATIVO WG75 20X(10X10GR) BAG IN | K58: 144 | L58: 200 | M58: 286 | N58: 58
A59: Oberon 100ml | B59: 50 | D59: 32 | E59: 18 | F59: OBERON (T) SC240 50X100ML BOT IN | J59: NATIVO WG75 40X250GR BAG IN | K59: 26 | M59: 18 | N59: 8
A60: Oberon 200ml | B60: 40 | D60: 6 | E60: 34 | F60: OBERON (T) SC240 40X200ML BOT IN | J60: NATIVO WG75 50X100GR BAG IN | K60: 3 | L60: 150 | M60: 128 | N60: 25
A61: Planofix 100ml | B61: 21 | C61: 50 | D61: 18 | E61: 53 | F61: PLANOFIX SL4 5 50X100ML BOT IN | J61: OBERON (T) SC240 40X200ML BOT IN | K61: 40 | M61: 6 | N61: 34
A62: Planofix 250ml | B62: 10 | C62: 40 | D62: 9 | E62: 41 | F62: PLANOFIX SL4 5 40X250ML BOT IN | J62: OBERON (T) SC240 50X100ML BOT IN | K62: 50 | M62: 32 | N62: 18
A63: Regent 100 Gm | B63: 26 | C63: 50 | D63: 37 | E63: 39 | F63: REGENT (T) SC50 50X100ML BOT IN | J63: PLANOFIX SL4 5 40X250ML BOT IN | K63: 10 | L63: 40 | M63: 9 | N63: 41
A64: Regent 1kg | B64: 2 | D64: 2 | F64: REGENT (T) SC50 10X1L BOT IN | J64: PLANOFIX SL4 5 50X100ML BOT IN | K64: 21 | L64: 50 | M64: 18 | N64: 53
A65: Regent 250 Gm | B65: 21 | C65: 40 | D65: 36 | E65: 25 | F65: REGENT (T) SC50 20X250ML BOT IN | J65: REGENT (T) SC50 10X1L BOT IN | K65: 2 | M65: 2
A66: Regent 500 Gm | C66: 40 | D66: 6 | E66: 34 | F66: REGENT (T) SC50 20X500ML BOT IN | J66: REGENT (T) SC50 20X250ML BOT IN | K66: 21 | L66: 40 | M66: 36 | N66: 25
A67: Regent 5kg | B67: 60 | D67: 21 | E67: 39 | F67: REGENT GR0 3 4X5KG BAG IN | J67: REGENT (T) SC50 20X500ML BOT IN | L67: 40 | M67: 6 | N67: 34
A68: Regent Gold 100ml | F68: REGENT GOLD SC200 50X100ML BOT IN | J68: REGENT (T) SC50 50X100ML BOT IN | K68: 26 | L68: 50 | M68: 37 | N68: 39
A69: Regent Gold 250ml | F69: REGENT GOLD SC200 40X250ML BOT IN | J69: REGENT GOLD SC200 40X250ML BOT IN
A70: Regent Ultra 4kg | F70: REGENT ULTRA GR0 6 5X4KG BAG IN | J70: REGENT GOLD SC200 50X100ML BOT IN
A71: Roundup 250ml | B71: 122 | D71: 74 | E71: 48 | F71: ROUNDUP 41% SL (IN) 40X250 ML | J71: REGENT GR0 3 4X5KG BAG IN | K71: 60 | M71: 21 | N71: 39
A72: Sectin 100gm | B72: 1 | D72: 1 | F72: SECTIN WG60 50X100GR BAG IN | J72: REGENT ULTRA GR0 6 5X4KG BAG IN
A73: Sectin 1kg | F73: SECTIN WG60 10X1KG BAG IN | J73: ROUNDUP 41% SL (IN) 40X250 ML | K73: 122 | M73: 74 | N73: 48
A74: Sectin 600gm | B74: 3 | D74: 3 | F74: SECTIN WG60 20X600GR BAG IN | J74: SECTIN WG60 10X1KG BAG IN
A75: Sencor 100gm | B75: 65 | D75: 65 | F75: SENCOR WP70 60X100GR BAG IN | J75: SECTIN WG60 20X600GR BAG IN | K75: 3 | M75: 3
A76: Sencor 500gm | B76: 262 | D76: 262 | F76: SENCOR WP70 20X500GR BOX IN | J76: SECTIN WG60 50X100GR BAG IN | K76: 1 | M76: 1
A77: Solomon 100ml | B77: 11 | C77: 600 | D77: 212 | E77: 399 | F77: SOLOMON OD300 50X100ML BOT IN | J77: SENCOR WP70 20X500GR BOX IN | K77: 262 | M77: 262
A78: Solomon 1lit | B78: 17 | C78: 100 | D78: 86 | E78: 31 | F78: SOLOMON OD300 10X1L BOT IN | J78: SENCOR WP70 60X100GR BAG IN | K78: 65 | M78: 65
A79: Solomon 250ml | B79: 65 | C79: 400 | D79: 388 | E79: 77 | F79: SOLOMON OD300 40X250ML BOT IN | J79: SOLOMON OD300 10X1L BOT IN | K79: 17 | L79: 100 | M79: 86 | N79: 31
A80: Solomon 500ml | B80: 27 | C80: 500 | D80: 303 | E80: 224 | F80: SOLOMON OD300 20X500ML BOT IN | J80: SOLOMON OD300 20X500ML BOT IN | K80: 27 | L80: 500 | M80: 303 | N80: 224
A81: Super Confidor 100ml | B81: 25 | C81: 100 | D81: 50 | E81: 75 | F81: CONFIDOR SUPER (T) SC350 50X100ML BOT IN | J81: SOLOMON OD300 40X250ML BOT IN | K81: 65 | L81: 400 | M81: 388 | N81: 77
A82: Super Confidor 250ml | C82: 40 | E82: 40 | F82: CONFIDOR SUPER (T) SC350 20X250ML BOT IN | J82: SOLOMON OD300 50X100ML BOT IN | K82: 11 | L82: 600 | M82: 212 | N82: 399
A83: Super Confidor 50ml | C83: 150 | D83: 92 | E83: 58 | F83: CONFIDOR SUPER (T) SC350 50X50ML BOT IN | J83: SURPASS SUPERB BG2 20X450G BAG IN
A84: Topstar 100gm | F84: TOPSTAR (T) WP80 4X(10X100GR) BOX IN | J84: TOPSTAR (T) WP80 4X(10X100GR) BOX IN
A85: Velum Prime 500ml | B85: 3 | C85: 20 | D85: 12 | E85: 11 | F85: VELUM PRIME SC400 20X500ML BOT IN | J85: VELUM PRIME SC400 20X500ML BOT IN | K85: 3 | L85: 20 | M85: 12 | N85: 11
J86: Grand Total | K86: 2025 | L86: 12311 | M86: 7444 | N86: 6892

Sheet Master
A1: Item Details | B1: Master Name
A2: Admire 150gm | B2: ADMIRE (T) WG70 30X150GR BOT IN
A3: Admire 2gm | B3: ADMIRE WG70 125X(8X2GR) BAG IN
A4: Admire 30gm | B4: ADMIRE (T) WG70 150X30GR BOT IN
A5: Admire 75gm | B5: ADMIRE (T) WG70 60X75GR BOT IN
A6: Aliette 100gm | B6: ALIETTE WP80 40X100GR BAG IN
A7: Aliette 1Kg | B7: ALIETTE WP80 10X1KG BAG IN
A8: Aliette 250gm | B8: ALIETTE WP80 20X250GR BAG IN
A9: Aliette 500Gm | B9: ALIETTE WP80 20X500GR BAG IN
A10: Ambition 1ltr | B10: AMBITION 10X1L BOT IN
A11: Ambition 250ml | B11: AMBITION 40X250ML BOT IN
A12: Ambition 500ml | B12: AMBITION 20X500ML BOT IN
A13: Antracol 100gm | B13: ANTRACOL (T) WP70 50X100GR BAG IN
A14: Antracol 1kg | B14: ANTRACOL (T) WP70 10X1KG BAG IN
A15: Antracol 250gm | B15: ANTRACOL (T) WP70 40X250GR BAG IN
A16: Antracol 500gm | B16: ANTRACOL (T) WP70 20X500GR BAG IN
A17: Belt Expert 100ml | B17: BELT EXPERT SC480 50X100ML BOT IN
A18: Bt Cotton Surpass Firstclass 7149 BG II 450gm | B18: DISCOUNTINUE PRODUCT
A19: Bt Cotton Surpass Superb BG II 450gm | B19: SURPASS SUPERB BG2 20X450G BAG IN
A20: Confidor 100ml | B20: CONFIDOR (T) SL200 50X100ML BOT IN
A21: Confidor 250ml | B21: CONFIDOR (T) SL200 20X250ML BOT IN
A22: Confidor 500ml | B22: CONFIDOR (T) SL200 20X500ML BOT IN
A23: Confidor 50ml | B23: CONFIDOR (T) SL200 100X50ML BOT IN
A24: Decis 100 100ml | B24: DECIS EC101-2 50X100ML BOX IN
A25: Decis 100 250ml | B25: DECIS EC 28 40X250ML BOT IN
A26: Ethrel 100ml | B26: ETHREL SL39 50X100ML BOT IN
A27: Ethrel 500ml | B27: ETHREL SL39 20X500ML BOT IN
A28: Evergol Xtend 100ml | B28: EVERGOL XTEND FS308 50X100ML BOT IN
A29: Evergol Xtend 40ml | B29: EVERGOL XTEND FS308 100X40ML BOT IN
A30: Fame 100ml | B30: FAME (T) SC480 20X100ML BOT IN
A31: Fame 10ml | B31: FAME (T) SC480 10X(20X10ML) BOT IN
A32: Fame 250ml | B32: FAME (T) SC480 8X250ML BOT IN
A33: Fame 50 Ml | B33: FAME (T) SC480 40X50ML BOT IN
A34: Fenos Quick 100ml | B34: FENOS QUICK SC150 50X100ML BOT IN
A35: Folicur 100ml | B35: FOLICUR (T) EC250 50X100ML BOT IN
A36: Folicur 250ml | B36: FOLICUR (T) EC250 40X250ML BOT IN
A37: Folicur 500 Ml | B37: FOLICUR (T) EC250 20X500ML BOT IN
A38: Gaucho 100 Ml | B38: GAUCHO FS600 50X100ML BOT IN
A39: Gaucho 250ml | B39: GAUCHO FS600 40X250ML BOT IN
A40: Gaucho 50ml | B40: DISCOUNTINUE PRODUCT
A41: Gaucho 9ml | B41: GAUCHO FS600 5X(20X9)ML BOT IN
A42: Infinito 100ml | B42: INFINITO SC687 5 50X100ML BOT IN
A43: Infinito 500ml | B43: INFINITO SC687 5 20X500ML BOT IN
A44: Jump 2gm | B44: JUMP WG80 160X(10X2GR) BAG IN
A45: Larvin 250gm | B45: LARVIN (T) WP75 20X250GR BAG IN
A46: Laudis 115ml | B46: LAUDIS SC630 8X115ML BOT IN
A47: Lesenta 100gm | B47: LESENTA WG80 50X100GR BAG IN
A48: Luna Experience 100ml | B48: LUNA EXPERIENCE SC400 50X100ML BOT IN
A49: Luna Experience 1li | B49: LUNA EXPERIENCE SC400 10X1L BOT IN
A50: Luna Experience 250ml | B50: LUNA EXPERIENCE SC400 40X250ML BOT IN
A51: Melody Duo 400gm | B51: MELODY DUO WP66 8 10X400GR BAG IN
A52: Melody Duo 800gm | B52: MELODY DUO WP66 8 10X800G BAG IN
A53: Movento Energy 100ml | B53: MOVENTO ENERGY SC240 50X100ML BOT IN
A54: Movento Energy 250ml | B54: MOVENTO ENERGY SC240 40X250ML BOT IN
A55: Nativo 100gm | B55: NATIVO WG75 50X100GR BAG IN
A56: Nativo 10gm | B56: NATIVO WG75 20X(10X10GR) BAG IN
A57: Nativo 250 Gm | B57: NATIVO WG75 40X250GR BAG IN
A58: Nativo 50gm | B58: NATIVO WG75 100X50GR BAG IN
A59: Oberon 100ml | B59: OBERON (T) SC240 50X100ML BOT IN
A60: Oberon 200ml | B60: OBERON (T) SC240 40X200ML BOT IN
A61: Planofix 100ml | B61: PLANOFIX SL4 5 50X100ML BOT IN
A62: Planofix 250ml | B62: PLANOFIX SL4 5 40X250ML BOT IN
A63: Regent 100 Gm | B63: REGENT (T) SC50 50X100ML BOT IN
A64: Regent 1kg | B64: REGENT (T) SC50 10X1L BOT IN
A65: Regent 250 Gm | B65: REGENT (T) SC50 20X250ML BOT IN
A66: Regent 500 Gm | B66: REGENT (T) SC50 20X500ML BOT IN
A67: Regent 5kg | B67: REGENT GR0 3 4X5KG BAG IN
A68: Regent Gold 100ml | B68: REGENT GOLD SC200 50X100ML BOT IN
A69: Regent Gold 250ml | B69: REGENT GOLD SC200 40X250ML BOT IN
A70: Regent Ultra 4kg | B70: REGENT ULTRA GR0 6 5X4KG BAG IN
A71: Roundup 250ml | B71: ROUNDUP 41% SL (IN) 40X250 ML
A72: Sectin 100gm | B72: SECTIN WG60 50X100GR BAG IN
A73: Sectin 1kg | B73: SECTIN WG60 10X1KG BAG IN
A74: Sectin 600gm | B74: SECTIN WG60 20X600GR BAG IN
A75: Sencor 100gm | B75: SENCOR WP70 60X100GR BAG IN
A76: Sencor 500gm | B76: SENCOR WP70 20X500GR BOX IN
A77: Solomon 100ml | B77: SOLOMON OD300 50X100ML BOT IN
A78: Solomon 1lit | B78: SOLOMON OD300 10X1L BOT IN
A79: Solomon 250ml | B79: SOLOMON OD300 40X250ML BOT IN
A80: Solomon 500ml | B80: SOLOMON OD300 20X500ML BOT IN
A81: Super Confidor 100ml | B81: CONFIDOR SUPER (T) SC350 50X100ML BOT IN
A82: Super Confidor 250ml | B82: CONFIDOR SUPER (T) SC350 20X250ML BOT IN
A83: Super Confidor 50ml | B83: CONFIDOR SUPER (T) SC350 50X50ML BOT IN
A84: Topstar 100gm | B84: TOPSTAR (T) WP80 4X(10X100GR) BOX IN
A85: Velum Prime 500ml | B85: VELUM PRIME SC400 20X500ML BOT IN
A86: BAYER SEED | B86: DISCOUNTINUE PRODUCT
A87: Cucumber US 800(1000 Seeds) Bayer | B87: DISCOUNTINUE PRODUCT
A88: Hy Bhendi Samrat 1400sds | B88: DISCOUNTINUE PRODUCT
A89: Hy Bhendi Shakti 1400sds | B89: DISCOUNTINUE PRODUCT
A90: Hy Bhendi Shakti (3500seeds) | B90: DISCOUNTINUE PRODUCT
A91: Hy Bhendi Singham 1400 Seeds | B91: DISCOUNTINUE PRODUCT
A92: Hy Bhendi Singham 3500 Seed | B92: DISCOUNTINUE PRODUCT
A93: Hy Bitter Gourd Us 33 250 Seed | B93: DISCOUNTINUE PRODUCT
A94: Hy Bitter Gourd Us33 500 Seed | B94: DISCOUNTINUE PRODUCT
A95: Hy Ridge Gourd Us6001 250seed | B95: DISCOUNTINUE PRODUCT
A96: Hy Ridge Gourd US 6001 500 Seeds | B96: DISCOUNTINUE PRODUCT
A97: Hy Tomato Us 440 3000sds | B97: DISCOUNTINUE PRODUCT
A98: Hy Watermelon Maxx 10000 Seeds | B98: DISCOUNTINUE PRODUCT
A99: Hy Watermelon Maxx 1000 Seed | B99: DISCOUNTINUE PRODUCT

Sheet Final Dealer Work
B2: PRODUCT | C2: ITEMALIAS | D2: Bpc | E2: Volume | F2: Opening Qty | G2: Purchase Qty | H2: Purchase Return Qty | I2: Sales Qty | J2: Sales Return Qty | K2: Transfer Qty | L2: Consignment Qty | M2: Adjustment Qty | N2: CLSG
B3: ADMIRE (T) WG70 150X30GR BOT IN | F3: 0 | G3: 150 | H3: 0 | I3: 131 | J3: 0 | K3: 0 | L3: 0 | M3: 0 | N3: 19
B4: ADMIRE (T) WG70 30X150GR BOT IN | F4: 0 | G4: 0 | H4: 0 | I4: 0 | J4: 0 | K4: 0 | L4: 0 | M4: 0 | N4: 0
B5: ADMIRE (T) WG70 60X75GR BOT IN | F5: 0 | G5: 60 | H5: 0 | I5: 2 | J5: 0 | K5: 0 | L5: 0 | M5: 0 | N5: 58
B6: ADMIRE WG70 125X(8X2GR) BAG IN | F6: 103 | G6: 1000 | H6: 0 | I6: 732 | J6: 0 | K6: 0 | L6: 0 | M6: 0 | N6: 371
B7: ALIETTE WP80 10X1KG BAG IN | F7: 4 | G7: 20 | H7: 0 | I7: 21 | J7: 0 | K7: 0 | L7: 0 | M7: 0 | N7: 3
B8: ALIETTE WP80 20X250GR BAG IN | F8: 30 | G8: 0 | H8: 0 | I8: 24 | J8: 0 | K8: 0 | L8: 0 | M8: 0 | N8: 6
B9: ALIETTE WP80 20X500GR BAG IN | F9: 14 | G9: 20 | H9: 0 | I9: 30 | J9: 0 | K9: 0 | L9: 0 | M9: 0 | N9: 4
B10: ALIETTE WP80 40X100GR BAG IN | F10: 61 | G10: 0 | H10: 0 | I10: 61 | J10: 0 | K10: 0 | L10: 0 | M10: 0 | N10: 0
B11: AMBITION 10X1L BOT IN | F11: 0 | G11: 50 | H11: 0 | I11: 48 | J11: 0 | K11: 0 | L11: 0 | M11: 0 | N11: 2
B12: AMBITION 20X500ML BOT IN | F12: 0 | G12: 100 | H12: 0 | I12: 59 | J12: 0 | K12: 0 | L12: 0 | M12: 0 | N12: 41
B13: AMBITION 40X250ML BOT IN | F13: 0 | G13: 320 | H13: 0 | I13: 41 | J13: 0 | K13: 0 | L13: 0 | M13: 0 | N13: 279
B14: ANTRACOL (T) WP70 10X1KG BAG IN | F14: 0 | G14: 0 | H14: 0 | I14: 0 | J14: 0 | K14: 0 | L14: 0 | M14: 0 | N14: 0
B15: ANTRACOL (T) WP70 20X500GR BAG IN | F15: 1 | G15: 120 | H15: 0 | I15: 116 | J15: 0 | K15: 0 | L15: 0 | M15: 0 | N15: 5
B16: ANTRACOL (T) WP70 40X250GR BAG IN | F16: 44 | G16: 240 | H16: 0 | I16: 155 | J16: 0 | K16: 0 | L16: 0 | M16: 0 | N16: 129
B17: ANTRACOL (T) WP70 50X100GR BAG IN | F17: 23 | G17: 150 | H17: 0 | I17: 50 | J17: 0 | K17: 0 | L17: 0 | M17: 0 | N17: 123
B18: BELT EXPERT SC480 50X100ML BOT IN | F18: 13 | G18: 0 | H18: 0 | I18: 13 | J18: 0 | K18: 0 | L18: 0 | M18: 0 | N18: 0
B19: CONFIDOR (T) SL200 100X50ML BOT IN | F19: 0 | G19: 100 | H19: 0 | I19: 51 | J19: 0 | K19: 0 | L19: 0 | M19: 0 | N19: 49
B20: CONFIDOR (T) SL200 20X250ML BOT IN | F20: 8 | G20: 40 | H20: 0 | I20: 18 | J20: 0 | K20: 0 | L20: 0 | M20: 0 | N20: 30
B21: CONFIDOR (T) SL200 20X500ML BOT IN | F21: 0 | G21: 20 | H21: 0 | I21: 6 | J21: 0 | K21: 0 | L21: 0 | M21: 0 | N21: 14
B22: CONFIDOR (T) SL200 50X100ML BOT IN | F22: 0 | G22: 150 | H22: 0 | I22: 42 | J22: 0 | K22: 0 | L22: 0 | M22: 0 | N22: 108
B23: CONFIDOR SUPER (T) SC350 20X250ML BOT IN | F23: 0 | G23: 40 | H23: 0 | I23: 0 | J23: 0 | K23: 0 | L23: 0 | M23: 0 | N23: 40
B24: CONFIDOR SUPER (T) SC350 50X100ML BOT IN | F24: 25 | G24: 100 | H24: 0 | I24: 50 | J24: 0 | K24: 0 | L24: 0 | M24: 0 | N24: 75
B25: CONFIDOR SUPER (T) SC350 50X50ML BOT IN | F25: 0 | G25: 150 | H25: 0 | I25: 92 | J25: 0 | K25: 0 | L25: 0 | M25: 0 | N25: 58
B26: DECIS EC 28 40X250ML BOT IN | F26: 24 | G26: 0 | H26: 0 | I26: 17 | J26: 0 | K26: 0 | L26: 0 | M26: 0 | N26: 7
B27: DECIS EC101-2 50X100ML BOX IN | F27: 0 | G27: 0 | H27: 0 | I27: 0 | J27: 0 | K27: 0 | L27: 0 | M27: 0 | N27: 0
B28: DISCOUNTINUE PRODUCT | F28: 140 | G28: 2500 | H28: 0 | I28: 1125 | J28: 0 | K28: 0 | L28: 0 | M28: 0 | N28: 1515
B29: ETHREL SL39 20X500ML BOT IN | F29: 0 | G29: 0 | H29: 0 | I29: 0 | J29: 0 | K29: 0 | L29: 0 | M29: 0 | N29: 0
B30: ETHREL SL39 50X100ML BOT IN | F30: 0 | G30: 50 | H30: 0 | I30: 11 | J30: 0 | K30: 0 | L30: 0 | M30: 0 | N30: 39
B31: EVERGOL XTEND FS308 100X40ML BOT IN | F31: 46 | G31: 500 | H31: 0 | I31: 128 | J31: 0 | K31: 0 | L31: 0 | M31: 0 | N31: 418
B32: EVERGOL XTEND FS308 50X100ML BOT IN | F32: 4 | G32: 250 | H32: 0 | I32: 126 | J32: 0 | K32: 0 | L32: 0 | M32: 0 | N32: 128
B33: FAME (T) SC480 10X(20X10ML) BOT IN | F33: 0 | G33: 0 | H33: 0 | I33: 0 | J33: 0 | K33: 0 | L33: 0 | M33: 0 | N33: 0
B34: FAME (T) SC480 20X100ML BOT IN | F34: 0 | G34: 0 | H34: 0 | I34: 0 | J34: 0 | K34: 0 | L34: 0 | M34: 0 | N34: 0
B35: FAME (T) SC480 40X50ML BOT IN | F35: 0 | G35: 0 | H35: 0 | I35: 0 | J35: 0 | K35: 0 | L35: 0 | M35: 0 | N35: 0
B36: FAME (T) SC480 8X250ML BOT IN | F36: 1 | G36: 0 | H36: 0 | I36: 1 | J36: 0 | K36: 0 | L36: 0 | M36: 0 | N36: 0
B37: FENOS QUICK SC150 50X100ML BOT IN | F37: 99 | G37: 250 | H37: 0 | I37: 16 | J37: 0 | K37: 0 | L37: 0 | M37: 0 | N37: 333
B38: FOLICUR (T) EC250 20X500ML BOT IN | F38: 0 | G38: 0 | H38: 0 | I38: 0 | J38: 0 | K38: 0 | L38: 0 | M38: 0 | N38: 0
B39: FOLICUR (T) EC250 40X250ML BOT IN | F39: 20 | G39: 40 | H39: 0 | I39: 33 | J39: 0 | K39: 0 | L39: 0 | M39: 0 | N39: 27
B40: FOLICUR (T) EC250 50X100ML BOT IN | F40: 12 | G40: 150 | H40: 0 | I40: 102 | J40: 0 | K40: 0 | L40: 0 | M40: 0 | N40: 60
B41: GAUCHO FS600 40X250ML BOT IN | F41: 0 | G41: 40 | H41: 0 | I41: 40 | J41: 0 | K41: 0 | L41: 0 | M41: 0 | N41: 0
B42: GAUCHO FS600 50X100ML BOT IN | F42: 273 | G42: 750 | H42: 0 | I42: 809 | J42: 0 | K42: 0 | L42: 0 | M42: 0 | N42: 214
B43: GAUCHO FS600 5X(20X9)ML BOT IN | F43: 0 | G43: 500 | H43: 0 | I43: 107 | J43: 0 | K43: 0 | L43: 0 | M43: 0 | N43: 393
B44: INFINITO SC687 5 20X500ML BOT IN | F44: 6 | G44: 0 | H44: 0 | I44: 3 | J44: 0 | K44: 0 | L44: 0 | M44: 0 | N44: 3
B45: INFINITO SC687 5 50X100ML BOT IN | F45: 5 | G45: 0 | H45: 0 | I45: 3 | J45: 0 | K45: 0 | L45: 0 | M45: 0 | N45: 2
B46: JUMP WG80 160X(10X2GR) BAG IN | F46: 0 | G46: 1600 | H46: 0 | I46: 684 | J46: 0 | K46: 0 | L46: 0 | M46: 0 | N46: 916
B47: LARVIN (T) WP75 20X250GR BAG IN | F47: 0 | G47: 0 | H47: 0 | I47: 0 | J47: 0 | K47: 0 | L47: 0 | M47: 0 | N47: 0
B48: LAUDIS SC630 8X115ML BOT IN | F48: 1 | G48: 0 | H48: 0 | I48: 0 | J48: 0 | K48: 0 | L48: 0 | M48: 0 | N48: 1
B49: LESENTA WG80 50X100GR BAG IN | F49: 29 | G49: 0 | H49: 0 | I49: 8 | J49: 0 | K49: 0 | L49: 0 | M49: 0 | N49: 21
B50: LUNA EXPERIENCE SC400 10X1L BOT IN | F50: 0 | G50: 10 | H50: 0 | I50: 0 | J50: 0 | K50: 0 | L50: 0 | M50: 0 | N50: 10
B51: LUNA EXPERIENCE SC400 40X250ML BOT IN | F51: 0 | G51: 201 | H51: 0 | I51: 91 | J51: 0 | K51: 0 | L51: 0 | M51: 0 | N51: 110
B52: LUNA EXPERIENCE SC400 50X100ML BOT IN | F52: 0 | G52: 250 | H52: 0 | I52: 167 | J52: 0 | K52: 0 | L52: 0 | M52: 0 | N52: 83
B53: MELODY DUO WP66 8 10X400GR BAG IN | F53: 6 | G53: 0 | H53: 0 | I53: 0 | J53: 0 | K53: 0 | L53: 0 | M53: 0 | N53: 6
B54: MELODY DUO WP66 8 10X800G BAG IN | F54: 0 | G54: 0 | H54: 0 | I54: 0 | J54: 0 | K54: 0 | L54: 0 | M54: 0 | N54: 0
B55: MOVENTO ENERGY SC240 40X250ML BOT IN | F55: 0 | G55: 0 | H55: 0 | I55: 0 | J55: 0 | K55: 0 | L55: 0 | M55: 0 | N55: 0
B56: MOVENTO ENERGY SC240 50X100ML BOT IN | F56: 13 | G56: 0 | H56: 0 | I56: 13 | J56: 0 | K56: 0 | L56: 0 | M56: 0 | N56: 0
B57: NATIVO WG75 100X50GR BAG IN | F57: 41 | G57: 200 | H57: 0 | I57: 213 | J57: 0 | K57: 0 | L57: 0 | M57: 0 | N57: 28
B58: NATIVO WG75 20X(10X10GR) BAG IN | F58: 144 | G58: 200 | H58: 0 | I58: 286 | J58: 0 | K58: 0 | L58: 0 | M58: 0 | N58: 58
B59: NATIVO WG75 40X250GR BAG IN | F59: 26 | G59: 0 | H59: 0 | I59: 18 | J59: 0 | K59: 0 | L59: 0 | M59: 0 | N59: 8
B60: NATIVO WG75 50X100GR BAG IN | F60: 3 | G60: 150 | H60: 0 | I60: 128 | J60: 0 | K60: 0 | L60: 0 | M60: 0 | N60: 25
B61: OBERON (T) SC240 40X200ML BOT IN | F61: 40 | G61: 0 | H61: 0 | I61: 6 | J61: 0 | K61: 0 | L61: 0 | M61: 0 | N61: 34
B62: OBERON (T) SC240 50X100ML BOT IN | F62: 50 | G62: 0 | H62: 0 | I62: 32 | J62: 0 | K62: 0 | L62: 0 | M62: 0 | N62: 18
B63: PLANOFIX SL4 5 40X250ML BOT IN | F63: 10 | G63: 40 | H63: 0 | I63: 9 | J63: 0 | K63: 0 | L63: 0 | M63: 0 | N63: 41
B64: PLANOFIX SL4 5 50X100ML BOT IN | F64: 21 | G64: 50 | H64: 0 | I64: 18 | J64: 0 | K64: 0 | L64: 0 | M64: 0 | N64: 53
B65: REGENT (T) SC50 10X1L BOT IN | F65: 2 | G65: 0 | H65: 0 | I65: 2 | J65: 0 | K65: 0 | L65: 0 | M65: 0 | N65: 0
B66: REGENT (T) SC50 20X250ML BOT IN | F66: 21 | G66: 40 | H66: 0 | I66: 36 | J66: 0 | K66: 0 | L66: 0 | M66: 0 | N66: 25
B67: REGENT (T) SC50 20X500ML BOT IN | F67: 0 | G67: 40 | H67: 0 | I67: 6 | J67: 0 | K67: 0 | L67: 0 | M67: 0 | N67: 34
B68: REGENT (T) SC50 50X100ML BOT IN | F68: 26 | G68: 50 | H68: 0 | I68: 37 | J68: 0 | K68: 0 | L68: 0 | M68: 0 | N68: 39
B69: REGENT GOLD SC200 40X250ML BOT IN | F69: 0 | G69: 0 | H69: 0 | I69: 0 | J69: 0 | K69: 0 | L69: 0 | M69: 0 | N69: 0
B70: REGENT GOLD SC200 50X100ML BOT IN | F70: 0 | G70: 0 | H70: 0 | I70: 0 | J70: 0 | K70: 0 | L70: 0 | M70: 0 | N70: 0
B71: REGENT GR0 3 4X5KG BAG IN | F71: 60 | G71: 0 | H71: 0 | I71: 21 | J71: 0 | K71: 0 | L71: 0 | M71: 0 | N71: 39
B72: REGENT ULTRA GR0 6 5X4KG BAG IN | F72: 0 | G72: 0 | H72: 0 | I72: 0 | J72: 0 | K72: 0 | L72: 0 | M72: 0 | N72: 0
B73: ROUNDUP 41% SL (IN) 40X250 ML | F73: 122 | G73: 0 | H73: 0 | I73: 74 | J73: 0 | K73: 0 | L73: 0 | M73: 0 | N73: 48
B74: SECTIN WG60 10X1KG BAG IN | F74: 0 | G74: 0 | H74: 0 | I74: 0 | J74: 0 | K74: 0 | L74: 0 | M74: 0 | N74: 0
B75: SECTIN WG60 20X600GR BAG IN | F75: 3 | G75: 0 | H75: 0 | I75: 3 | J75: 0 | K75: 0 | L75: 0 | M75: 0 | N75: 0
B76: SECTIN WG60 50X100GR BAG IN | F76: 1 | G76: 0 | H76: 0 | I76: 1 | J76: 0 | K76: 0 | L76: 0 | M76: 0 | N76: 0
B77: SENCOR WP70 20X500GR BOX IN | F77: 262 | G77: 0 | H77: 0 | I77: 262 | J77: 0 | K77: 0 | L77: 0 | M77: 0 | N77: 0
B78: SENCOR WP70 60X100GR BAG IN | F78: 65 | G78: 0 | H78: 0 | I78: 65 | J78: 0 | K78: 0 | L78: 0 | M78: 0 | N78: 0
B79: SOLOMON OD300 10X1L BOT IN | F79: 17 | G79: 100 | H79: 0 | I79: 86 | J79: 0 | K79: 0 | L79: 0 | M79: 0 | N79: 31
B80: SOLOMON OD300 20X500ML BOT IN | F80: 27 | G80: 500 | H80: 0 | I80: 303 | J80: 0 | K80: 0 | L80: 0 | M80: 0 | N80: 224
B81: SOLOMON OD300 40X250ML BOT IN | F81: 65 | G81: 400 | H81: 0 | I81: 388 | J81: 0 | K81: 0 | L81: 0 | M81: 0 | N81: 77
B82: SOLOMON OD300 50X100ML BOT IN | F82: 11 | G82: 600 | H82: 0 | I82: 212 | J82: 0 | K82: 0 | L82: 0 | M82: 0 | N82: 399
B83: SURPASS SUPERB BG2 20X450G BAG IN | F83: 0 | G83: 0 | H83: 0 | I83: 0 | J83: 0 | K83: 0 | L83: 0 | M83: 0 | N83: 0
B84: TOPSTAR (T) WP80 4X(10X100GR) BOX IN | F84: 0 | G84: 0 | H84: 0 | I84: 0 | J84: 0 | K84: 0 | L84: 0 | M84: 0 | N84: 0
B85: VELUM PRIME SC400 20X500ML BOT IN | F85: 3 | G85: 20 | H85: 0 | I85: 12 | J85: 0 | K85: 0 | L85: 0 | M85: 0 | N85: 11
B86: Grand Total | F86: 2025 | G86: 12311 | H86: 0 | I86: 7444 | J86: 0 | K86: 0 | L86: 0 | M86: 0 | N86: 6892

Sheet Zylem SNS Report
A2: Company Name:-BAYER
A3: Stock and Sales FOR THE PERIOD 01-Apr-2021 TO 31-Jul-2021
A4: Generated on 8/19/2021 5:43:42 AM
A5: DISTRIBUTOR PRODUCTWISE
A6: OUTPUT IN : PIC,DETAILS AS : Column,CONSIDER : Voucher Date,INCLUDE VALIDATION : False
A7: DISTRIBUTOR:Shetkari Krushi Seva Kendra,
A8: DISTRIBUTOR | B8: SAPCODE | C8: PRODUCT | D8: ITEMALIAS | E8: Opening Qty | F8: Purchase Qty | G8: Purchase Return Qty | H8: Sales Qty | I8: Sales Return Qty | J8: Transfer Qty | K8: Consignment Qty | L8: Adjustment Qty | M8: CLSG
A9: Shetkari Krushi Seva Kendra | B9: 4068242 | C9: ADMIRE (T) WG70 150X30GR BOT IN | D9: 79234988 | E9: 0 | F9: 150 | G9: 0 | H9: 133 | I9: 0 | J9: 0 | K9: 0 | L9: 0 | M9: 17
A10: Shetkari Krushi Seva Kendra | B10: 4068242 | C10: ADMIRE (T) WG70 60X75GR BOT IN | D10: 79297696 | E10: 0 | F10: 60 | G10: 0 | H10: 2 | I10: 0 | J10: 0 | K10: 0 | L10: 0 | M10: 58
A11: Shetkari Krushi Seva Kendra | B11: 4068242 | C11: ADMIRE WG70 125X(8X2GR) BAG IN | D11: 6101665 | E11: 103 | F11: 1000 | G11: 0 | H11: 732 | I11: 0 | J11: 0 | K11: 0 | L11: 0 | M11: 371
A12: Shetkari Krushi Seva Kendra | B12: 4068242 | C12: ALIETTE WP80 10X1KG BAG IN | D12: 3822323 | E12: 4 | F12: 20 | G12: 0 | H12: 21 | I12: 0 | J12: 0 | K12: 0 | L12: 0 | M12: 3
A13: Shetkari Krushi Seva Kendra | B13: 4068242 | C13: ALIETTE WP80 20X250GR BAG IN | D13: 3822358 | E13: 30 | F13: 0 | G13: 0 | H13: 24 | I13: 0 | J13: 0 | K13: 0 | L13: 0 | M13: 6
A14: Shetkari Krushi Seva Kendra | B14: 4068242 | C14: ALIETTE WP80 20X500GR BAG IN | D14: 3822366 | E14: 14 | F14: 20 | G14: 0 | H14: 30 | I14: 0 | J14: 0 | K14: 0 | L14: 0 | M14: 4
A15: Shetkari Krushi Seva Kendra | B15: 4068242 | C15: ALIETTE WP80 40X100GR BAG IN | D15: 3822331 | E15: 61 | F15: 0 | G15: 0 | H15: 61 | I15: 0 | J15: 0 | K15: 0 | L15: 0 | M15: 0
A16: Shetkari Krushi Seva Kendra | B16: 4068242 | C16: AMBITION 10X1L BOT IN | D16: 86212544 | E16: 0 | F16: 50 | G16: 0 | H16: 49 | I16: 0 | J16: 0 | K16: 0 | L16: 0 | M16: 1
A17: Shetkari Krushi Seva Kendra | B17: 4068242 | C17: AMBITION 20X500ML BOT IN | D17: 86228564 | E17: 0 | F17: 100 | G17: 0 | H17: 59 | I17: 0 | J17: 0 | K17: 0 | L17: 0 | M17: 41
A18: Shetkari Krushi Seva Kendra | B18: 4068242 | C18: AMBITION 40X250ML BOT IN | D18: 86232308 | E18: 0 | F18: 320 | G18: 0 | H18: 41 | I18: 0 | J18: 0 | K18: 0 | L18: 0 | M18: 279
A19: Shetkari Krushi Seva Kendra | B19: 4068242 | C19: ANTRACOL (T) WP70 20X500GR BAG IN | D19: 5999978 | E19: 1 | F19: 120 | G19: 0 | H19: 116 | I19: 0 | J19: 0 | K19: 0 | L19: 0 | M19: 5
A20: Shetkari Krushi Seva Kendra | B20: 4068242 | C20: ANTRACOL (T) WP70 40X250GR BAG IN | D20: 6112179 | E20: 44 | F20: 240 | G20: 0 | H20: 155 | I20: 0 | J20: 0 | K20: 0 | L20: 0 | M20: 129
A21: Shetkari Krushi Seva Kendra | B21: 4068242 | C21: ANTRACOL (T) WP70 50X100GR BAG IN | D21: 6113191 | E21: 23 | F21: 150 | G21: 0 | H21: 50 | I21: 0 | J21: 0 | K21: 0 | L21: 0 | M21: 123
A22: Shetkari Krushi Seva Kendra | B22: 4068242 | C22: BELT EXPERT SC480 50X100ML BOT IN | D22: 79722869 | E22: 13 | F22: 0 | G22: 0 | H22: 13 | I22: 0 | J22: 0 | K22: 0 | L22: 0 | M22: 0
A23: Shetkari Krushi Seva Kendra | B23: 4068242 | C23: CONFIDOR (T) SL200 100X50ML BOT IN | D23: 5708361 | E23: 0 | F23: 100 | G23: 0 | H23: 51 | I23: 0 | J23: 0 | K23: 0 | L23: 0 | M23: 49
A24: Shetkari Krushi Seva Kendra | B24: 4068242 | C24: CONFIDOR (T) SL200 20X250ML BOT IN | D24: 5699494 | E24: 8 | F24: 40 | G24: 0 | H24: 18 | I24: 0 | J24: 0 | K24: 0 | L24: 0 | M24: 30
A25: Shetkari Krushi Seva Kendra | B25: 4068242 | C25: CONFIDOR (T) SL200 20X500ML BOT IN | D25: 5704439 | E25: 0 | F25: 20 | G25: 0 | H25: 6 | I25: 0 | J25: 0 | K25: 0 | L25: 0 | M25: 14
A26: Shetkari Krushi Seva Kendra | B26: 4068242 | C26: CONFIDOR (T) SL200 50X100ML BOT IN | D26: 5703475 | E26: 0 | F26: 150 | G26: 0 | H26: 42 | I26: 0 | J26: 0 | K26: 0 | L26: 0 | M26: 108
A27: Shetkari Krushi Seva Kendra | B27: 4068242 | C27: CONFIDOR SUPER (T) SC350 20X250ML BOT IN | D27: 79710852 | E27: 0 | F27: 40 | G27: 0 | H27: 0 | I27: 0 | J27: 0 | K27: 0 | L27: 0 | M27: 40
A28: Shetkari Krushi Seva Kendra | B28: 4068242 | C28: CONFIDOR SUPER (T) SC350 50X100ML BOT IN | D28: 79735219 | E28: 25 | F28: 100 | G28: 0 | H28: 50 | I28: 0 | J28: 0 | K28: 0 | L28: 0 | M28: 75
A29: Shetkari Krushi Seva Kendra | B29: 4068242 | C29: CONFIDOR SUPER (T) SC350 50X50ML BOT IN | D29: 79985169 | E29: 0 | F29: 150 | G29: 0 | H29: 93 | I29: 0 | J29: 0 | K29: 0 | L29: 0 | M29: 57
A30: Shetkari Krushi Seva Kendra | B30: 4068242 | C30: DECIS EC 28 40X250ML BOT IN | D30: 3823346 | E30: 24 | F30: 0 | G30: 0 | H30: 17 | I30: 0 | J30: 0 | K30: 0 | L30: 0 | M30: 7
A31: Shetkari Krushi Seva Kendra | B31: 4068242 | C31: ETHREL SL39 50X100ML BOT IN | D31: 4299026 | E31: 0 | F31: 50 | G31: 0 | H31: 11 | I31: 0 | J31: 0 | K31: 0 | L31: 0 | M31: 39
A32: Shetkari Krushi Seva Kendra | B32: 4068242 | C32: EVERGOL XTEND FS308 100X40ML BOT IN | D32: 85402838 | E32: 46 | F32: 500 | G32: 0 | H32: 129 | I32: 0 | J32: 0 | K32: 0 | L32: 0 | M32: 417
A33: Shetkari Krushi Seva Kendra | B33: 4068242 | C33: EVERGOL XTEND FS308 50X100ML BOT IN | D33: 84065757 | E33: 4 | F33: 250 | G33: 0 | H33: 126 | I33: 0 | J33: 0 | K33: 0 | L33: 0 | M33: 128
A34: Shetkari Krushi Seva Kendra | B34: 4068242 | C34: FAME (T) SC480 8X250ML BOT IN | D34: 80183291 | E34: 1 | F34: 0 | G34: 0 | H34: 1 | I34: 0 | J34: 0 | K34: 0 | L34: 0 | M34: 0
A35: Shetkari Krushi Seva Kendra | B35: 4068242 | C35: FENOS QUICK SC150 50X100ML BOT IN | D35: 80942990 | E35: 99 | F35: 250 | G35: 0 | H35: 16 | I35: 0 | J35: 0 | K35: 0 | L35: 0 | M35: 333
A36: Shetkari Krushi Seva Kendra | B36: 4068242 | C36: FOLICUR (T) EC250 40X250ML BOT IN | D36: 79682271 | E36: 20 | F36: 40 | G36: 0 | H36: 33 | I36: 0 | J36: 0 | K36: 0 | L36: 0 | M36: 27
A37: Shetkari Krushi Seva Kendra | B37: 4068242 | C37: FOLICUR (T) EC250 50X100ML BOT IN | D37: 79629125 | E37: 12 | F37: 150 | G37: 0 | H37: 102 | I37: 0 | J37: 0 | K37: 0 | L37: 0 | M37: 60
A38: Shetkari Krushi Seva Kendra | B38: 4068242 | C38: GAUCHO FS600 40X250ML BOT IN | D38: 84995681 | E38: 0 | F38: 40 | G38: 0 | H38: 40 | I38: 0 | J38: 0 | K38: 0 | L38: 0 | M38: 0
A39: Shetkari Krushi Seva Kendra | B39: 4068242 | C39: GAUCHO FS600 50X100ML BOT IN | D39: 79664141 | E39: 273 | F39: 750 | G39: 0 | H39: 811 | I39: 0 | J39: 0 | K39: 0 | L39: 0 | M39: 212
A40: Shetkari Krushi Seva Kendra | B40: 4068242 | C40: GAUCHO FS600 5X(20X9)ML BOT IN | D40: 85824333 | E40: 0 | F40: 500 | G40: 0 | H40: 107 | I40: 0 | J40: 0 | K40: 0 | L40: 0 | M40: 393
A41: Shetkari Krushi Seva Kendra | B41: 4068242 | C41: INFINITO SC687 5 20X500ML BOT IN | D41: 79641176 | E41: 6 | F41: 0 | G41: 0 | H41: 3 | I41: 0 | J41: 0 | K41: 0 | L41: 0 | M41: 3
A42: Shetkari Krushi Seva Kendra | B42: 4068242 | C42: INFINITO SC687 5 50X100ML BOT IN | D42: 79632487 | E42: 5 | F42: 0 | G42: 0 | H42: 4 | I42: 0 | J42: 0 | K42: 0 | L42: 0 | M42: 1
A43: Shetkari Krushi Seva Kendra | B43: 4068242 | C43: JUMP WG80 160X(10X2GR) BAG IN | D43: 79215304 | E43: 0 | F43: 1600 | G43: 0 | H43: 684 | I43: 0 | J43: 0 | K43: 0 | L43: 0 | M43: 916
A44: Shetkari Krushi Seva Kendra | B44: 4068242 | C44: LAUDIS SC630 8X115ML BOT IN | D44: 80491085 | E44: 1 | F44: 0 | G44: 0 | H44: 0 | I44: 0 | J44: 0 | K44: 0 | L44: 0 | M44: 1
A45: Shetkari Krushi Seva Kendra | B45: 4068242 | C45: LESENTA WG80 50X100GR BAG IN | D45: 80503385 | E45: 29 | F45: 0 | G45: 0 | H45: 8 | I45: 0 | J45: 0 | K45: 0 | L45: 0 | M45: 21
A46: Shetkari Krushi Seva Kendra | B46: 4068242 | C46: LUNA EXPERIENCE SC400 10X1L BOT IN | D46: 80251904 | E46: 0 | F46: 10 | G46: 0 | H46: 0 | I46: 0 | J46: 0 | K46: 0 | L46: 0 | M46: 10
A47: Shetkari Krushi Seva Kendra | B47: 4068242 | C47: LUNA EXPERIENCE SC400 40X250ML BOT IN | D47: 80549652 | E47: 0 | F47: 201 | G47: 0 | H47: 91 | I47: 0 | J47: 0 | K47: 0 | L47: 0 | M47: 110
A48: Shetkari Krushi Seva Kendra | B48: 4068242 | C48: LUNA EXPERIENCE SC400 50X100ML BOT IN | D48: 80199414 | E48: 0 | F48: 250 | G48: 0 | H48: 167 | I48: 0 | J48: 0 | K48: 0 | L48: 0 | M48: 83
A49: Shetkari Krushi Seva Kendra | B49: 4068242 | C49: MELODY DUO WP66 8 10X400GR BAG IN | D49: 80994974 | E49: 6 | F49: 0 | G49: 0 | H49: 0 | I49: 0 | J49: 0 | K49: 0 | L49: 0 | M49: 6
A50: Shetkari Krushi Seva Kendra | B50: 4068242 | C50: MOVENTO ENERGY SC240 50X100ML BOT IN | D50: 79722605 | E50: 13 | F50: 0 | G50: 0 | H50: 13 | I50: 0 | J50: 0 | K50: 0 | L50: 0 | M50: 0
A51: Shetkari Krushi Seva Kendra | B51: 4068242 | C51: NATIVO WG75 100X50GR BAG IN | D51: 80580061 | E51: 41 | F51: 200 | G51: 0 | H51: 213 | I51: 0 | J51: 0 | K51: 0 | L51: 0 | M51: 28
A52: Shetkari Krushi Seva Kendra | B52: 4068242 | C52: NATIVO WG75 20X(10X10GR) BAG IN | D52: 80899920 | E52: 144 | F52: 200 | G52: 0 | H52: 286 | I52: 0 | J52: 0 | K52: 0 | L52: 0 | M52: 58
A53: Shetkari Krushi Seva Kendra | B53: 4068242 | C53: NATIVO WG75 40X250GR BAG IN | D53: 79237790 | E53: 26 | F53: 0 | G53: 0 | H53: 18 | I53: 0 | J53: 0 | K53: 0 | L53: 0 | M53: 8
A54: Shetkari Krushi Seva Kendra | B54: 4068242 | C54: NATIVO WG75 50X100GR BAG IN | D54: 79304102 | E54: 3 | F54: 150 | G54: 0 | H54: 128 | I54: 0 | J54: 0 | K54: 0 | L54: 0 | M54: 25
A55: Shetkari Krushi Seva Kendra | B55: 4068242 | C55: OBERON (T) SC240 40X200ML BOT IN | D55: 79971362 | E55: 40 | F55: 0 | G55: 0 | H55: 6 | I55: 0 | J55: 0 | K55: 0 | L55: 0 | M55: 34
A56: Shetkari Krushi Seva Kendra | B56: 4068242 | C56: OBERON (T) SC240 50X100ML BOT IN | D56: 79998538 | E56: 50 | F56: 0 | G56: 0 | H56: 32 | I56: 0 | J56: 0 | K56: 0 | L56: 0 | M56: 18
A57: Shetkari Krushi Seva Kendra | B57: 4068242 | C57: PLANOFIX SL4 5 40X250ML BOT IN | D57: 3825128 | E57: 10 | F57: 40 | G57: 0 | H57: 9 | I57: 0 | J57: 0 | K57: 0 | L57: 0 | M57: 41
A58: Shetkari Krushi Seva Kendra | B58: 4068242 | C58: PLANOFIX SL4 5 50X100ML BOT IN | D58: 3825098 | E58: 21 | F58: 50 | G58: 0 | H58: 18 | I58: 0 | J58: 0 | K58: 0 | L58: 0 | M58: 53
A59: Shetkari Krushi Seva Kendra | B59: 4068242 | C59: REGENT (T) SC50 20X250ML BOT IN | D59: 5976951 | E59: 21 | F59: 40 | G59: 0 | H59: 36 | I59: 0 | J59: 0 | K59: 0 | L59: 0 | M59: 25
A60: Shetkari Krushi Seva Kendra | B60: 4068242 | C60: REGENT (T) SC50 20X500ML BOT IN | D60: 5987678 | E60: 0 | F60: 40 | G60: 0 | H60: 6 | I60: 0 | J60: 0 | K60: 0 | L60: 0 | M60: 34
A61: Shetkari Krushi Seva Kendra | B61: 4068242 | C61: REGENT (T) SC50 50X100ML BOT IN | D61: 5975343 | E61: 26 | F61: 50 | G61: 0 | H61: 37 | I61: 0 | J61: 0 | K61: 0 | L61: 0 | M61: 39
A62: Shetkari Krushi Seva Kendra | B62: 4068242 | C62: REGENT GR0 3 4X5KG BAG IN | D62: 80018703 | E62: 60 | F62: 0 | G62: 0 | H62: 21 | I62: 0 | J62: 0 | K62: 0 | L62: 0 | M62: 39
A63: Shetkari Krushi Seva Kendra | B63: 4068242 | C63: SECTIN WG60 50X100GR BAG IN | D63: 5950812 | E63: 1 | F63: 0 | G63: 0 | H63: 1 | I63: 0 | J63: 0 | K63: 0 | L63: 0 | M63: 0
A64: Shetkari Krushi Seva Kendra | B64: 4068242 | C64: SENCOR WP70 20X500GR BOX IN | D64: 79052375 | E64: 262 | F64: 0 | G64: 0 | H64: 264 | I64: 0 | J64: 0 | K64: 0 | L64: 0 | M64: -2
A65: Shetkari Krushi Seva Kendra | B65: 4068242 | C65: SENCOR WP70 60X100GR BAG IN | D65: 3825578 | E65: 65 | F65: 0 | G65: 0 | H65: 65 | I65: 0 | J65: 0 | K65: 0 | L65: 0 | M65: 0
A66: Shetkari Krushi Seva Kendra | B66: 4068242 | C66: SOLOMON OD300 10X1L BOT IN | D66: 79637365 | E66: 17 | F66: 100 | G66: 0 | H66: 87 | I66: 0 | J66: 0 | K66: 0 | L66: 0 | M66: 30
A67: Shetkari Krushi Seva Kendra | B67: 4068242 | C67: SOLOMON OD300 20X500ML BOT IN | D67: 79987870 | E67: 27 | F67: 500 | G67: 0 | H67: 303 | I67: 0 | J67: 0 | K67: 0 | L67: 0 | M67: 224
A68: Shetkari Krushi Seva Kendra | B68: 4068242 | C68: SOLOMON OD300 40X250ML BOT IN | D68: 79706723 | E68: 65 | F68: 400 | G68: 0 | H68: 388 | I68: 0 | J68: 0 | K68: 0 | L68: 0 | M68: 77
A69: Shetkari Krushi Seva Kendra | B69: 4068242 | C69: SOLOMON OD300 50X100ML BOT IN | D69: 79641931 | E69: 11 | F69: 600 | G69: 0 | H69: 213 | I69: 0 | J69: 0 | K69: 0 | L69: 0 | M69: 398
A70: Shetkari Krushi Seva Kendra | B70: 4068242 | C70: VELUM PRIME SC400 20X500ML BOT IN | D70: 84407038 | E70: 3 | F70: 20 | G70: 0 | H70: 12 | I70: 0 | J70: 0 | K70: 0 | L70: 0 | M70: 11
A71: Shetkari Krushi Seva Kendra | B71: 4068242 | C71: ROUNDUP 41% SL (IN) 40X250 ML | D71: 10173671 | E71: 122 | F71: 0 | G71: 0 | H71: 74 | I71: 0 | J71: 0 | K71: 0 | L71: 0 | M71: 48
A72: Shetkari Krushi Seva Kendra | B72: 4068242 | C72: SECTIN WG60 20X600GR BAG IN | D72: 6000664 | E72: 3 | F72: 0 | G72: 0 | H72: 3 | I72: 0 | J72: 0 | K72: 0 | L72: 0 | M72: 0
A73: Shetkari Krushi Seva Kendra | B73: 4068242 | C73: REGENT (T) SC50 10X1L BOT IN | D73: 5962667 | E73: 2 | F73: 0 | G73: 0 | H73: 2 | I73: 0 | J73: 0 | K73: 0 | L73: 0 | M73: 0
A74: GRANDTOTAL | E74: 1885 | F74: 9811 | G74: 0 | H74: 6331 | I74: 0 | J74: 0 | K74: 0 | L74: 0 | M74: 5365

Sheet OPG
A1: ADMIRE (T) WG70 150X30GR BOT IN | B1: =VLOOKUP(A1,'[2]Product Master Sheet'!$B$2:$F$1506,5,0) -> 13 | C1: 0
A2: ADMIRE (T) WG70 60X75GR BOT IN | B2: =VLOOKUP(A2,'[2]Product Master Sheet'!$B$2:$F$1506,5,0) -> 15 | C2: 0
A3: ADMIRE WG70 125X(8X2GR) BAG IN | B3: =VLOOKUP(A3,'[2]Product Master Sheet'!$B$2:$F$1506,5,0) -> 16 | C3: 103
A4: ALIETTE WP80 10X1KG BAG IN | B4: =VLOOKUP(A4,'[2]Product Master Sheet'!$B$2:$F$1506,5,0) -> 31 | C4: 4
A5: ALIETTE WP80 20X250GR BAG IN | B5: =VLOOKUP(A5,'[2]Product Master Sheet'!$B$2:$F$1506,5,0) -> 33 | C5: 30
A6: ALIETTE WP80 20X500GR BAG IN | B6: =VLOOKUP(A6,'[2]Product Master Sheet'!$B$2:$F$1506,5,0) -> 34 | C6: 14
A7: ALIETTE WP80 40X100GR BAG IN | B7: =VLOOKUP(A7,'[2]Product Master Sheet'!$B$2:$F$1506,5,0) -> 35 | C7: 61
A8: AMBITION 10X1L BOT IN | B8: =VLOOKUP(A8,'[2]Product Master Sheet'!$B$2:$F$1506,5,0) -> 39 | C8: 0
A9: AMBITION 20X500ML BOT IN | B9: =VLOOKUP(A9,'[2]Product Master Sheet'!$B$2:$F$1506,5,0) -> 40 | C9: 0
A10: AMBITION 40X250ML BOT IN | B10: =VLOOKUP(A10,'[2]Product Master Sheet'!$B$2:$F$1506,5,0) -> 41 | C10: 0
A11: ANTRACOL (T) WP70 20X500GR BAG IN | B11: =VLOOKUP(A11,'[2]Product Master Sheet'!$B$2:$F$1506,5,0) -> 43 | C11: 1
A12: ANTRACOL (T) WP70 40X250GR BAG IN | B12: =VLOOKUP(A12,'[2]Product Master Sheet'!$B$2:$F$1506,5,0) -> 44 | C12: 44
A13: ANTRACOL (T) WP70 50X100GR BAG IN | B13: =VLOOKUP(A13,'[2]Product Master Sheet'!$B$2:$F$1506,5,0) -> 45 | C13: 23
A14: BELT EXPERT SC480 50X100ML BOT IN | B14: =VLOOKUP(A14,'[2]Product Master Sheet'!$B$2:$F$1506,5,0) -> 111 | C14: 13
A15: CONFIDOR (T) SL200 100X50ML BOT IN | B15: =VLOOKUP(A15,'[2]Product Master Sheet'!$B$2:$F$1506,5,0) -> 112 | C15: 0
A16: CONFIDOR (T) SL200 20X250ML BOT IN | B16: =VLOOKUP(A16,'[2]Product Master Sheet'!$B$2:$F$1506,5,0) -> 114 | C16: 8
A17: CONFIDOR (T) SL200 20X500ML BOT IN | B17: =VLOOKUP(A17,'[2]Product Master Sheet'!$B$2:$F$1506,5,0) -> 115 | C17: 0
A18: CONFIDOR (T) SL200 50X100ML BOT IN | B18: =VLOOKUP(A18,'[2]Product Master Sheet'!$B$2:$F$1506,5,0) -> 116 | C18: 0
A19: CONFIDOR SUPER (T) SC350 20X250ML BOT IN | B19: =VLOOKUP(A19,'[2]Product Master Sheet'!$B$2:$F$1506,5,0) -> 118 | C19: 0
A20: CONFIDOR SUPER (T) SC350 50X100ML BOT IN | B20: =VLOOKUP(A20,'[2]Product Master Sheet'!$B$2:$F$1506,5,0) -> 120 | C20: 25
A21: CONFIDOR SUPER (T) SC350 50X50ML BOT IN | B21: =VLOOKUP(A21,'[2]Product Master Sheet'!$B$2:$F$1506,5,0) -> 121 | C21: 0
A22: DECIS EC 28 40X250ML BOT IN | B22: =VLOOKUP(A22,'[2]Product Master Sheet'!$B$2:$F$1506,5,0) -> 126 | C22: 24
A23: ETHREL SL39 50X100ML BOT IN | B23: =VLOOKUP(A23,'[2]Product Master Sheet'!$B$2:$F$1506,5,0) -> 138 | C23: 0
A24: EVERGOL XTEND FS308 100X40ML BOT IN | B24: =VLOOKUP(A24,'[2]Product Master Sheet'!$B$2:$F$1506,5,0) -> 139 | C24: 46
A25: EVERGOL XTEND FS308 50X100ML BOT IN | B25: =VLOOKUP(A25,'[2]Product Master Sheet'!$B$2:$F$1506,5,0) -> 143 | C25: 4
A26: FAME (T) SC480 8X250ML BOT IN | B26: =VLOOKUP(A26,'[2]Product Master Sheet'!$B$2:$F$1506,5,0) -> 148 | C26: 1
A27: FENOS QUICK SC150 50X100ML BOT IN | B27: =VLOOKUP(A27,'[2]Product Master Sheet'!$B$2:$F$1506,5,0) -> 152 | C27: 99
A28: FOLICUR (T) EC250 40X250ML BOT IN | B28: =VLOOKUP(A28,'[2]Product Master Sheet'!$B$2:$F$1506,5,0) -> 164 | C28: 20
A29: FOLICUR (T) EC250 50X100ML BOT IN | B29: =VLOOKUP(A29,'[2]Product Master Sheet'!$B$2:$F$1506,5,0) -> 165 | C29: 12
A30: GAUCHO FS600 40X250ML BOT IN | B30: =VLOOKUP(A30,'[2]Product Master Sheet'!$B$2:$F$1506,5,0) -> 181 | C30: 0
A31: GAUCHO FS600 50X100ML BOT IN | B31: =VLOOKUP(A31,'[2]Product Master Sheet'!$B$2:$F$1506,5,0) -> 182 | C31: 273
A32: GAUCHO FS600 5X(20X9)ML BOT IN | B32: =VLOOKUP(A32,'[2]Product Master Sheet'!$B$2:$F$1506,5,0) -> 183 | C32: 0
A33: INFINITO SC687 5 20X500ML BOT IN | B33: =VLOOKUP(A33,'[2]Product Master Sheet'!$B$2:$F$1506,5,0) -> 195 | C33: 6
A34: INFINITO SC687 5 50X100ML BOT IN | B34: =VLOOKUP(A34,'[2]Product Master Sheet'!$B$2:$F$1506,5,0) -> 197 | C34: 5
A35: JUMP WG80 160X(10X2GR) BAG IN | B35: =VLOOKUP(A35,'[2]Product Master Sheet'!$B$2:$F$1506,5,0) -> 199 | C35: 0
A36: LAUDIS SC630 8X115ML BOT IN | B36: =VLOOKUP(A36,'[2]Product Master Sheet'!$B$2:$F$1506,5,0) -> 212 | C36: 1
A37: LESENTA WG80 50X100GR BAG IN | B37: =VLOOKUP(A37,'[2]Product Master Sheet'!$B$2:$F$1506,5,0) -> 219 | C37: 29
A38: LUNA EXPERIENCE SC400 10X1L BOT IN | B38: =VLOOKUP(A38,'[2]Product Master Sheet'!$B$2:$F$1506,5,0) -> 223 | C38: 0
A39: LUNA EXPERIENCE SC400 40X250ML BOT IN | B39: =VLOOKUP(A39,'[2]Product Master Sheet'!$B$2:$F$1506,5,0) -> 225 | C39: 0
A40: LUNA EXPERIENCE SC400 50X100ML BOT IN | B40: =VLOOKUP(A40,'[2]Product Master Sheet'!$B$2:$F$1506,5,0) -> 226 | C40: 0
A41: MELODY DUO WP66 8 10X400GR BAG IN | B41: =VLOOKUP(A41,'[2]Product Master Sheet'!$B$2:$F$1506,5,0) -> 228 | C41: 6
A42: MOVENTO ENERGY SC240 50X100ML BOT IN | B42: =VLOOKUP(A42,'[2]Product Master Sheet'!$B$2:$F$1506,5,0) -> 274 | C42: 13
A43: NATIVO WG75 100X50GR BAG IN | B43: =VLOOKUP(A43,'[2]Product Master Sheet'!$B$2:$F$1506,5,0) -> 289 | C43: 41
A44: NATIVO WG75 20X(10X10GR) BAG IN | B44: =VLOOKUP(A44,'[2]Product Master Sheet'!$B$2:$F$1506,5,0) -> 291 | C44: 144
A45: NATIVO WG75 40X250GR BAG IN | B45: =VLOOKUP(A45,'[2]Product Master Sheet'!$B$2:$F$1506,5,0) -> 293 | C45: 26
A46: NATIVO WG75 50X100GR BAG IN | B46: =VLOOKUP(A46,'[2]Product Master Sheet'!$B$2:$F$1506,5,0) -> 294 | C46: 3
A47: OBERON (T) SC240 40X200ML BOT IN | B47: =VLOOKUP(A47,'[2]Product Master Sheet'!$B$2:$F$1506,5,0) -> 299 | C47: 40
A48: OBERON (T) SC240 50X100ML BOT IN | B48: =VLOOKUP(A48,'[2]Product Master Sheet'!$B$2:$F$1506,5,0) -> 300 | C48: 50
A49: PLANOFIX SL4 5 40X250ML BOT IN | B49: =VLOOKUP(A49,'[2]Product Master Sheet'!$B$2:$F$1506,5,0) -> 306 | C49: 10
A50: PLANOFIX SL4 5 50X100ML BOT IN | B50: =VLOOKUP(A50,'[2]Product Master Sheet'!$B$2:$F$1506,5,0) -> 307 | C50: 21
A51: REGENT (T) SC50 20X250ML BOT IN | B51: =VLOOKUP(A51,'[2]Product Master Sheet'!$B$2:$F$1506,5,0) -> 325 | C51: 21
A52: REGENT (T) SC50 20X500ML BOT IN | B52: =VLOOKUP(A52,'[2]Product Master Sheet'!$B$2:$F$1506,5,0) -> 326 | C52: 0
A53: REGENT (T) SC50 50X100ML BOT IN | B53: =VLOOKUP(A53,'[2]Product Master Sheet'!$B$2:$F$1506,5,0) -> 327 | C53: 26
A54: REGENT GR0 3 4X5KG BAG IN | B54: =VLOOKUP(A54,'[2]Product Master Sheet'!$B$2:$F$1506,5,0) -> 336 | C54: 60
A55: SECTIN WG60 50X100GR BAG IN | B55: =VLOOKUP(A55,'[2]Product Master Sheet'!$B$2:$F$1506,5,0) -> 346 | C55: 1
A56: SENCOR WP70 20X500GR BOX IN | B56: =VLOOKUP(A56,'[2]Product Master Sheet'!$B$2:$F$1506,5,0) -> 350 | C56: 262
A57: SENCOR WP70 60X100GR BAG IN | B57: =VLOOKUP(A57,'[2]Product Master Sheet'!$B$2:$F$1506,5,0) -> 353 | C57: 65
A58: SOLOMON OD300 10X1L BOT IN | B58: =VLOOKUP(A58,'[2]Product Master Sheet'!$B$2:$F$1506,5,0) -> 365 | C58: 17
A59: SOLOMON OD300 20X500ML BOT IN | B59: =VLOOKUP(A59,'[2]Product Master Sheet'!$B$2:$F$1506,5,0) -> 366 | C59: 27
A60: SOLOMON OD300 40X250ML BOT IN | B60: =VLOOKUP(A60,'[2]Product Master Sheet'!$B$2:$F$1506,5,0) -> 368 | C60: 65
A61: SOLOMON OD300 50X100ML BOT IN | B61: =VLOOKUP(A61,'[2]Product Master Sheet'!$B$2:$F$1506,5,0) -> 370 | C61: 11
A62: VELUM PRIME SC400 20X500ML BOT IN | B62: =VLOOKUP(A62,'[2]Product Master Sheet'!$B$2:$F$1506,5,0) -> 400 | C62: 3
A63: ROUNDUP 41% SL (IN) 40X250 ML | B63: =VLOOKUP(A63,'[2]Product Master Sheet'!$B$2:$F$1506,5,0) -> 991 | C63: 122
A64: SECTIN WG60 20X600GR BAG IN | B64: =VLOOKUP(A64,'[2]Product Master Sheet'!$B$2:$F$1506,5,0) -> 345 | C64: 3
A65: REGENT (T) SC50 10X1L BOT IN | B65: =VLOOKUP(A65,'[2]Product Master Sheet'!$B$2:$F$1506,5,0) -> 324 | C65: 2
A66: ADMIRE (T) WG70 30X150GR BOT IN | B66: =VLOOKUP(A66,'[2]Product Master Sheet'!$B$2:$F$1506,5,0) -> 14 | C66: 0
A67: ANTRACOL (T) WP70 10X1KG BAG IN | B67: =VLOOKUP(A67,'[2]Product Master Sheet'!$B$2:$F$1506,5,0) -> 42 | C67: 0
A68: DECIS EC101-2 50X100ML BOX IN | B68: =VLOOKUP(A68,'[2]Product Master Sheet'!$B$2:$F$1506,5,0) -> 924 | C68: 0
A69: ETHREL SL39 20X500ML BOT IN | B69: =VLOOKUP(A69,'[2]Product Master Sheet'!$B$2:$F$1506,5,0) -> 137 | C69: 0
A70: FAME (T) SC480 10X(20X10ML) BOT IN | B70: =VLOOKUP(A70,'[2]Product Master Sheet'!$B$2:$F$1506,5,0) -> 144 | C70: 0
A71: FAME (T) SC480 20X100ML BOT IN | B71: =VLOOKUP(A71,'[2]Product Master Sheet'!$B$2:$F$1506,5,0) -> 145 | C71: 0
A72: FAME (T) SC480 40X50ML BOT IN | B72: =VLOOKUP(A72,'[2]Product Master Sheet'!$B$2:$F$1506,5,0) -> 146 | C72: 0
A73: FOLICUR (T) EC250 20X500ML BOT IN | B73: =VLOOKUP(A73,'[2]Product Master Sheet'!$B$2:$F$1506,5,0) -> 163 | C73: 0
A74: LARVIN (T) WP75 20X250GR BAG IN | B74: =VLOOKUP(A74,'[2]Product Master Sheet'!$B$2:$F$1506,5,0) -> 205 | C74: 0
A75: MELODY DUO WP66 8 10X800G BAG IN | B75: =VLOOKUP(A75,'[2]Product Master Sheet'!$B$2:$F$1506,5,0) -> 230 | C75: 0
A76: MOVENTO ENERGY SC240 40X250ML BOT IN | B76: =VLOOKUP(A76,'[2]Product Master Sheet'!$B$2:$F$1506,5,0) -> 273 | C76: 0
A77: REGENT GOLD SC200 40X250ML BOT IN | B77: =VLOOKUP(A77,'[2]Product Master Sheet'!$B$2:$F$1506,5,0) -> 331 | C77: 0
A78: REGENT GOLD SC200 50X100ML BOT IN | B78: =VLOOKUP(A78,'[2]Product Master Sheet'!$B$2:$F$1506,5,0) -> 332 | C78: 0
A79: REGENT ULTRA GR0 6 5X4KG BAG IN | B79: =VLOOKUP(A79,'[2]Product Master Sheet'!$B$2:$F$1506,5,0) -> 339 | C79: 0
A80: SECTIN WG60 10X1KG BAG IN | B80: =VLOOKUP(A80,'[2]Product Master Sheet'!$B$2:$F$1506,5,0) -> 344 | C80: 0
A81: SURPASS SUPERB BG2 20X450G BAG IN | B81: =VLOOKUP(A81,'[2]Product Master Sheet'!$B$2:$F$1506,5,0) -> 394 | C81: 0
A82: TOPSTAR (T) WP80 4X(10X100GR) BOX IN | B82: =VLOOKUP(A82,'[2]Product Master Sheet'!$B$2:$F$1506,5,0) -> 396 | C82: 0

Sheet Reco
B1: Zylem Report -01-Apr-2021 TO 31-Jul-2021 | K1: Dealer Report -01-Apr-2021 TO 31-Jul-2021 | T1: Difference (+/-)
A3: DEALER CODE | B3: Opening Qty | C3: Purchase Qty | D3: Purchase Return Qty | E3: Sales Qty | F3: Sales Return Qty | G3: Transfer Qty | H3: Consignment Qty | I3: Adjustment Qty | J3: CLSG | K3: Opening Qty | L3: Purchase Qty | M3: Purchase Return Qty | N3: Sales Qty | O3: Sales Return Qty | P3: Transfer Qty | Q3: Consignment Qty | R3: Adjustment Qty | S3: CLSG | T3: Opening Stock Qty | U3: Purchase Qty | V3: Purchase Return Qty | W3: Sales Qty | X3: Sales Return Qty | Y3: Transfer Qty | Z3: Consignment Qty | AA3: Adjustments Qty | AB3: CLSG | AC3: Remark
A4: ADMIRE (T) WG70 150X30GR BOT IN | B4: 0 | C4: 150 | D4: 0 | E4: 133 | F4: 0 | G4: 0 | H4: 0 | I4: 0 | J4: 17 | K4: 0 | L4: 150 | M4: 0 | N4: 131 | O4: 0 | P4: 0 | Q4: 0 | R4: 0 | S4: 19 | T4: 0 | U4: 0 | V4: 0 | W4: 2 | X4: 0 | Y4: 0 | Z4: 0 | AA4: 0 | AB4: -2 | AC4: CHECKED IN TALLY FOUND THAT SAPL SALES QTY SHOWING CORRECT. ON REPORT SHOWING WRONG.
A5: ADMIRE (T) WG70 60X75GR BOT IN | B5: 0 | C5: 60 | D5: 0 | E5: 2 | F5: 0 | G5: 0 | H5: 0 | I5: 0 | J5: 58 | K5: 0 | L5: 60 | M5: 0 | N5: 2 | O5: 0 | P5: 0 | Q5: 0 | R5: 0 | S5: 58 | T5: 0 | U5: 0 | V5: 0 | W5: 0 | X5: 0 | Y5: 0 | Z5: 0 | AA5: 0 | AB5: 0 | AC5: Ok
A6: ADMIRE WG70 125X(8X2GR) BAG IN | B6: 103 | C6: 1000 | D6: 0 | E6: 732 | F6: 0 | G6: 0 | H6: 0 | I6: 0 | J6: 371 | K6: 103 | L6: 1000 | M6: 0 | N6: 732 | O6: 0 | P6: 0 | Q6: 0 | R6: 0 | S6: 371 | T6: 0 | U6: 0 | V6: 0 | W6: 0 | X6: 0 | Y6: 0 | Z6: 0 | AA6: 0 | AB6: 0 | AC6: Ok
A7: ALIETTE WP80 10X1KG BAG IN | B7: 4 | C7: 20 | D7: 0 | E7: 21 | F7: 0 | G7: 0 | H7: 0 | I7: 0 | J7: 3 | K7: 4 | L7: 20 | M7: 0 | N7: 21 | O7: 0 | P7: 0 | Q7: 0 | R7: 0 | S7: 3 | T7: 0 | U7: 0 | V7: 0 | W7: 0 | X7: 0 | Y7: 0 | Z7: 0 | AA7: 0 | AB7: 0 | AC7: Ok
A8: ALIETTE WP80 20X250GR BAG IN | B8: 30 | C8: 0 | D8: 0 | E8: 24 | F8: 0 | G8: 0 | H8: 0 | I8: 0 | J8: 6 | K8: 30 | L8: 0 | M8: 0 | N8: 24 | O8: 0 | P8: 0 | Q8: 0 | R8: 0 | S8: 6 | T8: 0 | U8: 0 | V8: 0 | W8: 0 | X8: 0 | Y8: 0 | Z8: 0 | AA8: 0 | AB8: 0 | AC8: Ok
A9: ALIETTE WP80 20X500GR BAG IN | B9: 14 | C9: 20 | D9: 0 | E9: 30 | F9: 0 | G9: 0 | H9: 0 | I9: 0 | J9: 4 | K9: 14 | L9: 20 | M9: 0 | N9: 30 | O9: 0 | P9: 0 | Q9: 0 | R9: 0 | S9: 4 | T9: 0 | U9: 0 | V9: 0 | W9: 0 | X9: 0 | Y9: 0 | Z9: 0 | AA9: 0 | AB9: 0 | AC9: Ok
A10: ALIETTE WP80 40X100GR BAG IN | B10: 61 | C10: 0 | D10: 0 | E10: 61 | F10: 0 | G10: 0 | H10: 0 | I10: 0 | J10: 0 | K10: 61 | L10: 0 | M10: 0 | N10: 61 | O10: 0 | P10: 0 | Q10: 0 | R10: 0 | S10: 0 | T10: 0 | U10: 0 | V10: 0 | W10: 0 | X10: 0 | Y10: 0 | Z10: 0 | AA10: 0 | AB10: 0 | AC10: Ok
A11: AMBITION 10X1L BOT IN | B11: 0 | C11: 50 | D11: 0 | E11: 49 | F11: 0 | G11: 0 | H11: 0 | I11: 0 | J11: 1 | K11: 0 | L11: 50 | M11: 0 | N11: 48 | O11: 0 | P11: 0 | Q11: 0 | R11: 0 | S11: 2 | T11: 0 | U11: 0 | V11: 0 | W11: 1 | X11: 0 | Y11: 0 | Z11: 0 | AA11: 0 | AB11: -1 | AC11: CHECKED IN TALLY FOUND THAT SAPL SALES QTY SHOWING CORRECT. ON REPORT SHOWING WRONG.
A12: AMBITION 20X500ML BOT IN | B12: 0 | C12: 100 | D12: 0 | E12: 59 | F12: 0 | G12: 0 | H12: 0 | I12: 0 | J12: 41 | K12: 0 | L12: 100 | M12: 0 | N12: 59 | O12: 0 | P12: 0 | Q12: 0 | R12: 0 | S12: 41 | T12: 0 | U12: 0 | V12: 0 | W12: 0 | X12: 0 | Y12: 0 | Z12: 0 | AA12: 0 | AB12: 0 | AC12: Ok
A13: AMBITION 40X250ML BOT IN | B13: 0 | C13: 320 | D13: 0 | E13: 41 | F13: 0 | G13: 0 | H13: 0 | I13: 0 | J13: 279 | K13: 0 | L13: 320 | M13: 0 | N13: 41 | O13: 0 | P13: 0 | Q13: 0 | R13: 0 | S13: 279 | T13: 0 | U13: 0 | V13: 0 | W13: 0 | X13: 0 | Y13: 0 | Z13: 0 | AA13: 0 | AB13: 0 | AC13: Ok
A14: ANTRACOL (T) WP70 20X500GR BAG IN | B14: 1 | C14: 120 | D14: 0 | E14: 116 | F14: 0 | G14: 0 | H14: 0 | I14: 0 | J14: 5 | K14: 1 | L14: 120 | M14: 0 | N14: 116 | O14: 0 | P14: 0 | Q14: 0 | R14: 0 | S14: 5 | T14: 0 | U14: 0 | V14: 0 | W14: 0 | X14: 0 | Y14: 0 | Z14: 0 | AA14: 0 | AB14: 0 | AC14: Ok
A15: ANTRACOL (T) WP70 40X250GR BAG IN | B15: 44 | C15: 240 | D15: 0 | E15: 155 | F15: 0 | G15: 0 | H15: 0 | I15: 0 | J15: 129 | K15: 44 | L15: 240 | M15: 0 | N15: 155 | O15: 0 | P15: 0 | Q15: 0 | R15: 0 | S15: 129 | T15: 0 | U15: 0 | V15: 0 | W15: 0 | X15: 0 | Y15: 0 | Z15: 0 | AA15: 0 | AB15: 0 | AC15: Ok
A16: ANTRACOL (T) WP70 50X100GR BAG IN | B16: 23 | C16: 150 | D16: 0 | E16: 50 | F16: 0 | G16: 0 | H16: 0 | I16: 0 | J16: 123 | K16: 23 | L16: 150 | M16: 0 | N16: 50 | O16: 0 | P16: 0 | Q16: 0 | R16: 0 | S16: 123 | T16: 0 | U16: 0 | V16: 0 | W16: 0 | X16: 0 | Y16: 0 | Z16: 0 | AA16: 0 | AB16: 0 | AC16: Ok
A17: BELT EXPERT SC480 50X100ML BOT IN | B17: 13 | C17: 0 | D17: 0 | E17: 13 | F17: 0 | G17: 0 | H17: 0 | I17: 0 | J17: 0 | K17: 13 | L17: 0 | M17: 0 | N17: 13 | O17: 0 | P17: 0 | Q17: 0 | R17: 0 | S17: 0 | T17: 0 | U17: 0 | V17: 0 | W17: 0 | X17: 0 | Y17: 0 | Z17: 0 | AA17: 0 | AB17: 0 | AC17: Ok
A18: CONFIDOR (T) SL200 100X50ML BOT IN | B18: 0 | C18: 100 | D18: 0 | E18: 51 | F18: 0 | G18: 0 | H18: 0 | I18: 0 | J18: 49 | K18: 0 | L18: 100 | M18: 0 | N18: 51 | O18: 0 | P18: 0 | Q18: 0 | R18: 0 | S18: 49 | T18: 0 | U18: 0 | V18: 0 | W18: 0 | X18: 0 | Y18: 0 | Z18: 0 | AA18: 0 | AB18: 0 | AC18: Ok
A19: CONFIDOR (T) SL200 20X250ML BOT IN | B19: 8 | C19: 40 | D19: 0 | E19: 18 | F19: 0 | G19: 0 | H19: 0 | I19: 0 | J19: 30 | K19: 8 | L19: 40 | M19: 0 | N19: 18 | O19: 0 | P19: 0 | Q19: 0 | R19: 0 | S19: 30 | T19: 0 | U19: 0 | V19: 0 | W19: 0 | X19: 0 | Y19: 0 | Z19: 0 | AA19: 0 | AB19: 0 | AC19: Ok
A20: CONFIDOR (T) SL200 20X500ML BOT IN | B20: 0 | C20: 20 | D20: 0 | E20: 6 | F20: 0 | G20: 0 | H20: 0 | I20: 0 | J20: 14 | K20: 0 | L20: 20 | M20: 0 | N20: 6 | O20: 0 | P20: 0 | Q20: 0 | R20: 0 | S20: 14 | T20: 0 | U20: 0 | V20: 0 | W20: 0 | X20: 0 | Y20: 0 | Z20: 0 | AA20: 0 | AB20: 0 | AC20: Ok
A21: CONFIDOR (T) SL200 50X100ML BOT IN | B21: 0 | C21: 150 | D21: 0 | E21: 42 | F21: 0 | G21: 0 | H21: 0 | I21: 0 | J21: 108 | K21: 0 | L21: 150 | M21: 0 | N21: 42 | O21: 0 | P21: 0 | Q21: 0 | R21: 0 | S21: 108 | T21: 0 | U21: 0 | V21: 0 | W21: 0 | X21: 0 | Y21: 0 | Z21: 0 | AA21: 0 | AB21: 0 | AC21: Ok
A22: CONFIDOR SUPER (T) SC350 20X250ML BOT IN | B22: 0 | C22: 40 | D22: 0 | E22: 0 | F22: 0 | G22: 0 | H22: 0 | I22: 0 | J22: 40 | K22: 0 | L22: 40 | M22: 0 | N22: 0 | O22: 0 | P22: 0 | Q22: 0 | R22: 0 | S22: 40 | T22: 0 | U22: 0 | V22: 0 | W22: 0 | X22: 0 | Y22: 0 | Z22: 0 | AA22: 0 | AB22: 0 | AC22: Ok
A23: CONFIDOR SUPER (T) SC350 50X100ML BOT IN | B23: 25 | C23: 100 | D23: 0 | E23: 50 | F23: 0 | G23: 0 | H23: 0 | I23: 0 | J23: 75 | K23: 25 | L23: 100 | M23: 0 | N23: 50 | O23: 0 | P23: 0 | Q23: 0 | R23: 0 | S23: 75 | T23: 0 | U23: 0 | V23: 0 | W23: 0 | X23: 0 | Y23: 0 | Z23: 0 | AA23: 0 | AB23: 0 | AC23: Ok
A24: CONFIDOR SUPER (T) SC350 50X50ML BOT IN | B24: 0 | C24: 150 | D24: 0 | E24: 93 | F24: 0 | G24: 0 | H24: 0 | I24: 0 | J24: 57 | K24: 0 | L24: 150 | M24: 0 | N24: 92 | O24: 0 | P24: 0 | Q24: 0 | R24: 0 | S24: 58 | T24: 0 | U24: 0 | V24: 0 | W24: 1 | X24: 0 | Y24: 0 | Z24: 0 | AA24: 0 | AB24: -1 | AC24: CHECKED IN TALLY FOUND THAT SAPL SALES QTY SHOWING CORRECT. ON REPORT SHOWING WRONG.
A25: DECIS EC 28 40X250ML BOT IN | B25: 24 | C25: 0 | D25: 0 | E25: 17 | F25: 0 | G25: 0 | H25: 0 | I25: 0 | J25: 7 | K25: 24 | L25: 0 | M25: 0 | N25: 17 | O25: 0 | P25: 0 | Q25: 0 | R25: 0 | S25: 7 | T25: 0 | U25: 0 | V25: 0 | W25: 0 | X25: 0 | Y25: 0 | Z25: 0 | AA25: 0 | AB25: 0 | AC25: Ok
A26: ETHREL SL39 50X100ML BOT IN | B26: 0 | C26: 50 | D26: 0 | E26: 11 | F26: 0 | G26: 0 | H26: 0 | I26: 0 | J26: 39 | K26: 0 | L26: 50 | M26: 0 | N26: 11 | O26: 0 | P26: 0 | Q26: 0 | R26: 0 | S26: 39 | T26: 0 | U26: 0 | V26: 0 | W26: 0 | X26: 0 | Y26: 0 | Z26: 0 | AA26: 0 | AB26: 0 | AC26: Ok
A27: EVERGOL XTEND FS308 100X40ML BOT IN | B27: 46 | C27: 500 | D27: 0 | E27: 129 | F27: 0 | G27: 0 | H27: 0 | I27: 0 | J27: 417 | K27: 46 | L27: 500 | M27: 0 | N27: 128 | O27: 0 | P27: 0 | Q27: 0 | R27: 0 | S27: 418 | T27: 0 | U27: 0 | V27: 0 | W27: 1 | X27: 0 | Y27: 0 | Z27: 0 | AA27: 0 | AB27: -1 | AC27: CHECKED IN TALLY FOUND THAT SAPL SALES QTY SHOWING CORRECT. ON REPORT SHOWING WRONG.
A28: EVERGOL XTEND FS308 50X100ML BOT IN | B28: 4 | C28: 250 | D28: 0 | E28: 126 | F28: 0 | G28: 0 | H28: 0 | I28: 0 | J28: 128 | K28: 4 | L28: 250 | M28: 0 | N28: 126 | O28: 0 | P28: 0 | Q28: 0 | R28: 0 | S28: 128 | T28: 0 | U28: 0 | V28: 0 | W28: 0 | X28: 0 | Y28: 0 | Z28: 0 | AA28: 0 | AB28: 0 | AC28: Ok
A29: FAME (T) SC480 8X250ML BOT IN | B29: 1 | C29: 0 | D29: 0 | E29: 1 | F29: 0 | G29: 0 | H29: 0 | I29: 0 | J29: 0 | K29: 1 | L29: 0 | M29: 0 | N29: 1 | O29: 0 | P29: 0 | Q29: 0 | R29: 0 | S29: 0 | T29: 0 | U29: 0 | V29: 0 | W29: 0 | X29: 0 | Y29: 0 | Z29: 0 | AA29: 0 | AB29: 0 | AC29: Ok
A30: FENOS QUICK SC150 50X100ML BOT IN | B30: 99 | C30: 250 | D30: 0 | E30: 16 | F30: 0 | G30: 0 | H30: 0 | I30: 0 | J30: 333 | K30: 99 | L30: 250 | M30: 0 | N30: 16 | O30: 0 | P30: 0 | Q30: 0 | R30: 0 | S30: 333 | T30: 0 | U30: 0 | V30: 0 | W30: 0 | X30: 0 | Y30: 0 | Z30: 0 | AA30: 0 | AB30: 0 | AC30: Ok
A31: FOLICUR (T) EC250 40X250ML BOT IN | B31: 20 | C31: 40 | D31: 0 | E31: 33 | F31: 0 | G31: 0 | H31: 0 | I31: 0 | J31: 27 | K31: 20 | L31: 40 | M31: 0 | N31: 33 | O31: 0 | P31: 0 | Q31: 0 | R31: 0 | S31: 27 | T31: 0 | U31: 0 | V31: 0 | W31: 0 | X31: 0 | Y31: 0 | Z31: 0 | AA31: 0 | AB31: 0 | AC31: Ok
A32: FOLICUR (T) EC250 50X100ML BOT IN | B32: 12 | C32: 150 | D32: 0 | E32: 102 | F32: 0 | G32: 0 | H32: 0 | I32: 0 | J32: 60 | K32: 12 | L32: 150 | M32: 0 | N32: 102 | O32: 0 | P32: 0 | Q32: 0 | R32: 0 | S32: 60 | T32: 0 | U32: 0 | V32: 0 | W32: 0 | X32: 0 | Y32: 0 | Z32: 0 | AA32: 0 | AB32: 0 | AC32: Ok
A33: GAUCHO FS600 40X250ML BOT IN | B33: 0 | C33: 40 | D33: 0 | E33: 40 | F33: 0 | G33: 0 | H33: 0 | I33: 0 | J33: 0 | K33: 0 | L33: 40 | M33: 0 | N33: 40 | O33: 0 | P33: 0 | Q33: 0 | R33: 0 | S33: 0 | T33: 0 | U33: 0 | V33: 0 | W33: 0 | X33: 0 | Y33: 0 | Z33: 0 | AA33: 0 | AB33: 0 | AC33: Ok
A34: GAUCHO FS600 50X100ML BOT IN | B34: 273 | C34: 750 | D34: 0 | E34: 811 | F34: 0 | G34: 0 | H34: 0 | I34: 0 | J34: 212 | K34: 273 | L34: 750 | M34: 0 | N34: 809 | O34: 0 | P34: 0 | Q34: 0 | R34: 0 | S34: 214 | T34: 0 | U34: 0 | V34: 0 | W34: 2 | X34: 0 | Y34: 0 | Z34: 0 | AA34: 0 | AB34: -2 | AC34: CHECKED IN TALLY FOUND THAT SAPL SALES QTY SHOWING CORRECT. ON REPORT SHOWING WRONG.
A35: GAUCHO FS600 5X(20X9)ML BOT IN | B35: 0 | C35: 500 | D35: 0 | E35: 107 | F35: 0 | G35: 0 | H35: 0 | I35: 0 | J35: 393 | K35: 0 | L35: 500 | M35: 0 | N35: 107 | O35: 0 | P35: 0 | Q35: 0 | R35: 0 | S35: 393 | T35: 0 | U35: 0 | V35: 0 | W35: 0 | X35: 0 | Y35: 0 | Z35: 0 | AA35: 0 | AB35: 0 | AC35: Ok
A36: INFINITO SC687 5 20X500ML BOT IN | B36: 6 | C36: 0 | D36: 0 | E36: 3 | F36: 0 | G36: 0 | H36: 0 | I36: 0 | J36: 3 | K36: 6 | L36: 0 | M36: 0 | N36: 3 | O36: 0 | P36: 0 | Q36: 0 | R36: 0 | S36: 3 | T36: 0 | U36: 0 | V36: 0 | W36: 0 | X36: 0 | Y36: 0 | Z36: 0 | AA36: 0 | AB36: 0 | AC36: Ok
A37: INFINITO SC687 5 50X100ML BOT IN | B37: 5 | C37: 0 | D37: 0 | E37: 4 | F37: 0 | G37: 0 | H37: 0 | I37: 0 | J37: 1 | K37: 5 | L37: 0 | M37: 0 | N37: 3 | O37: 0 | P37: 0 | Q37: 0 | R37: 0 | S37: 2 | T37: 0 | U37: 0 | V37: 0 | W37: 1 | X37: 0 | Y37: 0 | Z37: 0 | AA37: 0 | AB37: -1 | AC37: CHECKED IN TALLY FOUND THAT SAPL SALES QTY SHOWING CORRECT. ON REPORT SHOWING WRONG.
A38: JUMP WG80 160X(10X2GR) BAG IN | B38: 0 | C38: 1600 | D38: 0 | E38: 684 | F38: 0 | G38: 0 | H38: 0 | I38: 0 | J38: 916 | K38: 0 | L38: 1600 | M38: 0 | N38: 684 | O38: 0 | P38: 0 | Q38: 0 | R38: 0 | S38: 916 | T38: 0 | U38: 0 | V38: 0 | W38: 0 | X38: 0 | Y38: 0 | Z38: 0 | AA38: 0 | AB38: 0 | AC38: Ok
A39: LAUDIS SC630 8X115ML BOT IN | B39: 1 | C39: 0 | D39: 0 | E39: 0 | F39: 0 | G39: 0 | H39: 0 | I39: 0 | J39: 1 | K39: 1 | L39: 0 | M39: 0 | N39: 0 | O39: 0 | P39: 0 | Q39: 0 | R39: 0 | S39: 1 | T39: 0 | U39: 0 | V39: 0 | W39: 0 | X39: 0 | Y39: 0 | Z39: 0 | AA39: 0 | AB39: 0 | AC39: Ok
A40: LESENTA WG80 50X100GR BAG IN | B40: 29 | C40: 0 | D40: 0 | E40: 8 | F40: 0 | G40: 0 | H40: 0 | I40: 0 | J40: 21 | K40: 29 | L40: 0 | M40: 0 | N40: 8 | O40: 0 | P40: 0 | Q40: 0 | R40: 0 | S40: 21 | T40: 0 | U40: 0 | V40: 0 | W40: 0 | X40: 0 | Y40: 0 | Z40: 0 | AA40: 0 | AB40: 0 | AC40: Ok
A41: LUNA EXPERIENCE SC400 10X1L BOT IN | B41: 0 | C41: 10 | D41: 0 | E41: 0 | F41: 0 | G41: 0 | H41: 0 | I41: 0 | J41: 10 | K41: 0 | L41: 10 | M41: 0 | N41: 0 | O41: 0 | P41: 0 | Q41: 0 | R41: 0 | S41: 10 | T41: 0 | U41: 0 | V41: 0 | W41: 0 | X41: 0 | Y41: 0 | Z41: 0 | AA41: 0 | AB41: 0 | AC41: Ok
A42: LUNA EXPERIENCE SC400 40X250ML BOT IN | B42: 0 | C42: 201 | D42: 0 | E42: 91 | F42: 0 | G42: 0 | H42: 0 | I42: 0 | J42: 110 | K42: 0 | L42: 201 | M42: 0 | N42: 91 | O42: 0 | P42: 0 | Q42: 0 | R42: 0 | S42: 110 | T42: 0 | U42: 0 | V42: 0 | W42: 0 | X42: 0 | Y42: 0 | Z42: 0 | AA42: 0 | AB42: 0 | AC42: Ok
A43: LUNA EXPERIENCE SC400 50X100ML BOT IN | B43: 0 | C43: 250 | D43: 0 | E43: 167 | F43: 0 | G43: 0 | H43: 0 | I43: 0 | J43: 83 | K43: 0 | L43: 250 | M43: 0 | N43: 167 | O43: 0 | P43: 0 | Q43: 0 | R43: 0 | S43: 83 | T43: 0 | U43: 0 | V43: 0 | W43: 0 | X43: 0 | Y43: 0 | Z43: 0 | AA43: 0 | AB43: 0 | AC43: Ok
A44: MELODY DUO WP66 8 10X400GR BAG IN | B44: 6 | C44: 0 | D44: 0 | E44: 0 | F44: 0 | G44: 0 | H44: 0 | I44: 0 | J44: 6 | K44: 6 | L44: 0 | M44: 0 | N44: 0 | O44: 0 | P44: 0 | Q44: 0 | R44: 0 | S44: 6 | T44: 0 | U44: 0 | V44: 0 | W44: 0 | X44: 0 | Y44: 0 | Z44: 0 | AA44: 0 | AB44: 0 | AC44: Ok
A45: MOVENTO ENERGY SC240 50X100ML BOT IN | B45: 13 | C45: 0 | D45: 0 | E45: 13 | F45: 0 | G45: 0 | H45: 0 | I45: 0 | J45: 0 | K45: 13 | L45: 0 | M45: 0 | N45: 13 | O45: 0 | P45: 0 | Q45: 0 | R45: 0 | S45: 0 | T45: 0 | U45: 0 | V45: 0 | W45: 0 | X45: 0 | Y45: 0 | Z45: 0 | AA45: 0 | AB45: 0 | AC45: Ok
A46: NATIVO WG75 100X50GR BAG IN | B46: 41 | C46: 200 | D46: 0 | E46: 213 | F46: 0 | G46: 0 | H46: 0 | I46: 0 | J46: 28 | K46: 41 | L46: 200 | M46: 0 | N46: 213 | O46: 0 | P46: 0 | Q46: 0 | R46: 0 | S46: 28 | T46: 0 | U46: 0 | V46: 0 | W46: 0 | X46: 0 | Y46: 0 | Z46: 0 | AA46: 0 | AB46: 0 | AC46: Ok
A47: NATIVO WG75 20X(10X10GR) BAG IN | B47: 144 | C47: 200 | D47: 0 | E47: 286 | F47: 0 | G47: 0 | H47: 0 | I47: 0 | J47: 58 | K47: 144 | L47: 200 | M47: 0 | N47: 286 | O47: 0 | P47: 0 | Q47: 0 | R47: 0 | S47: 58 | T47: 0 | U47: 0 | V47: 0 | W47: 0 | X47: 0 | Y47: 0 | Z47: 0 | AA47: 0 | AB47: 0 | AC47: Ok
A48: NATIVO WG75 40X250GR BAG IN | B48: 26 | C48: 0 | D48: 0 | E48: 18 | F48: 0 | G48: 0 | H48: 0 | I48: 0 | J48: 8 | K48: 26 | L48: 0 | M48: 0 | N48: 18 | O48: 0 | P48: 0 | Q48: 0 | R48: 0 | S48: 8 | T48: 0 | U48: 0 | V48: 0 | W48: 0 | X48: 0 | Y48: 0 | Z48: 0 | AA48: 0 | AB48: 0 | AC48: Ok
A49: NATIVO WG75 50X100GR BAG IN | B49: 3 | C49: 150 | D49: 0 | E49: 128 | F49: 0 | G49: 0 | H49: 0 | I49: 0 | J49: 25 | K49: 3 | L49: 150 | M49: 0 | N49: 128 | O49: 0 | P49: 0 | Q49: 0 | R49: 0 | S49: 25 | T49: 0 | U49: 0 | V49: 0 | W49: 0 | X49: 0 | Y49: 0 | Z49: 0 | AA49: 0 | AB49: 0 | AC49: Ok
A50: OBERON (T) SC240 40X200ML BOT IN | B50: 40 | C50: 0 | D50: 0 | E50: 6 | F50: 0 | G50: 0 | H50: 0 | I50: 0 | J50: 34 | K50: 40 | L50: 0 | M50: 0 | N50: 6 | O50: 0 | P50: 0 | Q50: 0 | R50: 0 | S50: 34 | T50: 0 | U50: 0 | V50: 0 | W50: 0 | X50: 0 | Y50: 0 | Z50: 0 | AA50: 0 | AB50: 0 | AC50: Ok
A51: OBERON (T) SC240 50X100ML BOT IN | B51: 50 | C51: 0 | D51: 0 | E51: 32 | F51: 0 | G51: 0 | H51: 0 | I51: 0 | J51: 18 | K51: 50 | L51: 0 | M51: 0 | N51: 32 | O51: 0 | P51: 0 | Q51: 0 | R51: 0 | S51: 18 | T51: 0 | U51: 0 | V51: 0 | W51: 0 | X51: 0 | Y51: 0 | Z51: 0 | AA51: 0 | AB51: 0 | AC51: Ok
A52: PLANOFIX SL4 5 40X250ML BOT IN | B52: 10 | C52: 40 | D52: 0 | E52: 9 | F52: 0 | G52: 0 | H52: 0 | I52: 0 | J52: 41 | K52: 10 | L52: 40 | M52: 0 | N52: 9 | O52: 0 | P52: 0 | Q52: 0 | R52: 0 | S52: 41 | T52: 0 | U52: 0 | V52: 0 | W52: 0 | X52: 0 | Y52: 0 | Z52: 0 | AA52: 0 | AB52: 0 | AC52: Ok
A53: PLANOFIX SL4 5 50X100ML BOT IN | B53: 21 | C53: 50 | D53: 0 | E53: 18 | F53: 0 | G53: 0 | H53: 0 | I53: 0 | J53: 53 | K53: 21 | L53: 50 | M53: 0 | N53: 18 | O53: 0 | P53: 0 | Q53: 0 | R53: 0 | S53: 53 | T53: 0 | U53: 0 | V53: 0 | W53: 0 | X53: 0 | Y53: 0 | Z53: 0 | AA53: 0 | AB53: 0 | AC53: Ok
A54: REGENT (T) SC50 20X250ML BOT IN | B54: 21 | C54: 40 | D54: 0 | E54: 36 | F54: 0 | G54: 0 | H54: 0 | I54: 0 | J54: 25 | K54: 21 | L54: 40 | M54: 0 | N54: 36 | O54: 0 | P54: 0 | Q54: 0 | R54: 0 | S54: 25 | T54: 0 | U54: 0 | V54: 0 | W54: 0 | X54: 0 | Y54: 0 | Z54: 0 | AA54: 0 | AB54: 0 | AC54: Ok
A55: REGENT (T) SC50 20X500ML BOT IN | B55: 0 | C55: 40 | D55: 0 | E55: 6 | F55: 0 | G55: 0 | H55: 0 | I55: 0 | J55: 34 | K55: 0 | L55: 40 | M55: 0 | N55: 6 | O55: 0 | P55: 0 | Q55: 0 | R55: 0 | S55: 34 | T55: 0 | U55: 0 | V55: 0 | W55: 0 | X55: 0 | Y55: 0 | Z55: 0 | AA55: 0 | AB55: 0 | AC55: Ok
A56: REGENT (T) SC50 50X100ML BOT IN | B56: 26 | C56: 50 | D56: 0 | E56: 37 | F56: 0 | G56: 0 | H56: 0 | I56: 0 | J56: 39 | K56: 26 | L56: 50 | M56: 0 | N56: 37 | O56: 0 | P56: 0 | Q56: 0 | R56: 0 | S56: 39 | T56: 0 | U56: 0 | V56: 0 | W56: 0 | X56: 0 | Y56: 0 | Z56: 0 | AA56: 0 | AB56: 0 | AC56: Ok
A57: REGENT GR0 3 4X5KG BAG IN | B57: 60 | C57: 0 | D57: 0 | E57: 21 | F57: 0 | G57: 0 | H57: 0 | I57: 0 | J57: 39 | K57: 60 | L57: 0 | M57: 0 | N57: 21 | O57: 0 | P57: 0 | Q57: 0 | R57: 0 | S57: 39 | T57: 0 | U57: 0 | V57: 0 | W57: 0 | X57: 0 | Y57: 0 | Z57: 0 | AA57: 0 | AB57: 0 | AC57: Ok
A58: SECTIN WG60 50X100GR BAG IN | B58: 1 | C58: 0 | D58: 0 | E58: 1 | F58: 0 | G58: 0 | H58: 0 | I58: 0 | J58: 0 | K58: 1 | L58: 0 | M58: 0 | N58: 1 | O58: 0 | P58: 0 | Q58: 0 | R58: 0 | S58: 0 | T58: 0 | U58: 0 | V58: 0 | W58: 0 | X58: 0 | Y58: 0 | Z58: 0 | AA58: 0 | AB58: 0 | AC58: Ok
A59: SENCOR WP70 20X500GR BOX IN | B59: 262 | C59: 0 | D59: 0 | E59: 264 | F59: 0 | G59: 0 | H59: 0 | I59: 0 | J59: -2 | K59: 262 | L59: 0 | M59: 0 | N59: 262 | O59: 0 | P59: 0 | Q59: 0 | R59: 0 | S59: 0 | T59: 0 | U59: 0 | V59: 0 | W59: 2 | X59: 0 | Y59: 0 | Z59: 0 | AA59: 0 | AB59: -2 | AC59: CHECKED IN TALLY FOUND THAT SAPL SALES QTY SHOWING CORRECT. ON REPORT SHOWING WRONG.
A60: SENCOR WP70 60X100GR BAG IN | B60: 65 | C60: 0 | D60: 0 | E60: 65 | F60: 0 | G60: 0 | H60: 0 | I60: 0 | J60: 0 | K60: 65 | L60: 0 | M60: 0 | N60: 65 | O60: 0 | P60: 0 | Q60: 0 | R60: 0 | S60: 0 | T60: 0 | U60: 0 | V60: 0 | W60: 0 | X60: 0 | Y60: 0 | Z60: 0 | AA60: 0 | AB60: 0 | AC60: Ok
A61: SOLOMON OD300 10X1L BOT IN | B61: 17 | C61: 100 | D61: 0 | E61: 87 | F61: 0 | G61: 0 | H61: 0 | I61: 0 | J61: 30 | K61: 17 | L61: 100 | M61: 0 | N61: 86 | O61: 0 | P61: 0 | Q61: 0 | R61: 0 | S61: 31 | T61: 0 | U61: 0 | V61: 0 | W61: 1 | X61: 0 | Y61: 0 | Z61: 0 | AA61: 0 | AB61: -1 | AC61: CHECKED IN TALLY FOUND THAT SAPL SALES QTY SHOWING CORRECT. ON REPORT SHOWING WRONG.
A62: SOLOMON OD300 20X500ML BOT IN | B62: 27 | C62: 500 | D62: 0 | E62: 303 | F62: 0 | G62: 0 | H62: 0 | I62: 0 | J62: 224 | K62: 27 | L62: 500 | M62: 0 | N62: 303 | O62: 0 | P62: 0 | Q62: 0 | R62: 0 | S62: 224 | T62: 0 | U62: 0 | V62: 0 | W62: 0 | X62: 0 | Y62: 0 | Z62: 0 | AA62: 0 | AB62: 0 | AC62: Ok
A63: SOLOMON OD300 40X250ML BOT IN | B63: 65 | C63: 400 | D63: 0 | E63: 388 | F63: 0 | G63: 0 | H63: 0 | I63: 0 | J63: 77 | K63: 65 | L63: 400 | M63: 0 | N63: 388 | O63: 0 | P63: 0 | Q63: 0 | R63: 0 | S63: 77 | T63: 0 | U63: 0 | V63: 0 | W63: 0 | X63: 0 | Y63: 0 | Z63: 0 | AA63: 0 | AB63: 0 | AC63: Ok
A64: SOLOMON OD300 50X100ML BOT IN | B64: 11 | C64: 600 | D64: 0 | E64: 213 | F64: 0 | G64: 0 | H64: 0 | I64: 0 | J64: 398 | K64: 11 | L64: 600 | M64: 0 | N64: 212 | O64: 0 | P64: 0 | Q64: 0 | R64: 0 | S64: 399 | T64: 0 | U64: 0 | V64: 0 | W64: 1 | X64: 0 | Y64: 0 | Z64: 0 | AA64: 0 | AB64: -1 | AC64: CHECKED IN TALLY FOUND THAT SAPL SALES QTY SHOWING CORRECT. ON REPORT SHOWING WRONG.
A65: VELUM PRIME SC400 20X500ML BOT IN | B65: 3 | C65: 20 | D65: 0 | E65: 12 | F65: 0 | G65: 0 | H65: 0 | I65: 0 | J65: 11 | K65: 3 | L65: 20 | M65: 0 | N65: 12 | O65: 0 | P65: 0 | Q65: 0 | R65: 0 | S65: 11 | T65: 0 | U65: 0 | V65: 0 | W65: 0 | X65: 0 | Y65: 0 | Z65: 0 | AA65: 0 | AB65: 0 | AC65: Ok
A66: ROUNDUP 41% SL (IN) 40X250 ML | B66: 122 | C66: 0 | D66: 0 | E66: 74 | F66: 0 | G66: 0 | H66: 0 | I66: 0 | J66: 48 | K66: 122 | L66: 0 | M66: 0 | N66: 74 | O66: 0 | P66: 0 | Q66: 0 | R66: 0 | S66: 48 | T66: 0 | U66: 0 | V66: 0 | W66: 0 | X66: 0 | Y66: 0 | Z66: 0 | AA66: 0 | AB66: 0 | AC66: Ok
A67: SECTIN WG60 20X600GR BAG IN | B67: 3 | C67: 0 | D67: 0 | E67: 3 | F67: 0 | G67: 0 | H67: 0 | I67: 0 | J67: 0 | K67: 3 | L67: 0 | M67: 0 | N67: 3 | O67: 0 | P67: 0 | Q67: 0 | R67: 0 | S67: 0 | T67: 0 | U67: 0 | V67: 0 | W67: 0 | X67: 0 | Y67: 0 | Z67: 0 | AA67: 0 | AB67: 0 | AC67: Ok
A68: REGENT (T) SC50 10X1L BOT IN | B68: 2 | C68: 0 | D68: 0 | E68: 2 | F68: 0 | G68: 0 | H68: 0 | I68: 0 | J68: 0 | K68: 2 | L68: 0 | M68: 0 | N68: 2 | O68: 0 | P68: 0 | Q68: 0 | R68: 0 | S68: 0 | T68: 0 | U68: 0 | V68: 0 | W68: 0 | X68: 0 | Y68: 0 | Z68: 0 | AA68: 0 | AB68: 0 | AC68: Ok
A69: ADMIRE (T) WG70 30X150GR BOT IN | B69: 0 | C69: 0 | D69: 0 | E69: 0 | F69: 0 | G69: 0 | H69: 0 | I69: 0 | J69: 0 | K69: 0 | L69: 0 | M69: 0 | N69: 0 | O69: 0 | P69: 0 | Q69: 0 | R69: 0 | S69: 0 | T69: 0 | U69: 0 | V69: 0 | W69: 0 | X69: 0 | Y69: 0 | Z69: 0 | AA69: 0 | AB69: 0 | AC69: Ok
A70: ANTRACOL (T) WP70 10X1KG BAG IN | B70: 0 | C70: 0 | D70: 0 | E70: 0 | F70: 0 | G70: 0 | H70: 0 | I70: 0 | J70: 0 | K70: 0 | L70: 0 | M70: 0 | N70: 0 | O70: 0 | P70: 0 | Q70: 0 | R70: 0 | S70: 0 | T70: 0 | U70: 0 | V70: 0 | W70: 0 | X70: 0 | Y70: 0 | Z70: 0 | AA70: 0 | AB70: 0 | AC70: Ok
A71: DECIS EC101-2 50X100ML BOX IN | B71: 0 | C71: 0 | D71: 0 | E71: 0 | F71: 0 | G71: 0 | H71: 0 | I71: 0 | J71: 0 | K71: 0 | L71: 0 | M71: 0 | N71: 0 | O71: 0 | P71: 0 | Q71: 0 | R71: 0 | S71: 0 | T71: 0 | U71: 0 | V71: 0 | W71: 0 | X71: 0 | Y71: 0 | Z71: 0 | AA71: 0 | AB71: 0 | AC71: Ok
A72: ETHREL SL39 20X500ML BOT IN | B72: 0 | C72: 0 | D72: 0 | E72: 0 | F72: 0 | G72: 0 | H72: 0 | I72: 0 | J72: 0 | K72: 0 | L72: 0 | M72: 0 | N72: 0 | O72: 0 | P72: 0 | Q72: 0 | R72: 0 | S72: 0 | T72: 0 | U72: 0 | V72: 0 | W72: 0 | X72: 0 | Y72: 0 | Z72: 0 | AA72: 0 | AB72: 0 | AC72: Ok
A73: FAME (T) SC480 10X(20X10ML) BOT IN | B73: 0 | C73: 0 | D73: 0 | E73: 0 | F73: 0 | G73: 0 | H73: 0 | I73: 0 | J73: 0 | K73: 0 | L73: 0 | M73: 0 | N73: 0 | O73: 0 | P73: 0 | Q73: 0 | R73: 0 | S73: 0 | T73: 0 | U73: 0 | V73: 0 | W73: 0 | X73: 0 | Y73: 0 | Z73: 0 | AA73: 0 | AB73: 0 | AC73: Ok
A74: FAME (T) SC480 20X100ML BOT IN | B74: 0 | C74: 0 | D74: 0 | E74: 0 | F74: 0 | G74: 0 | H74: 0 | I74: 0 | J74: 0 | K74: 0 | L74: 0 | M74: 0 | N74: 0 | O74: 0 | P74: 0 | Q74: 0 | R74: 0 | S74: 0 | T74: 0 | U74: 0 | V74: 0 | W74: 0 | X74: 0 | Y74: 0 | Z74: 0 | AA74: 0 | AB74: 0 | AC74: Ok
A75: FAME (T) SC480 40X50ML BOT IN | B75: 0 | C75: 0 | D75: 0 | E75: 0 | F75: 0 | G75: 0 | H75: 0 | I75: 0 | J75: 0 | K75: 0 | L75: 0 | M75: 0 | N75: 0 | O75: 0 | P75: 0 | Q75: 0 | R75: 0 | S75: 0 | T75: 0 | U75: 0 | V75: 0 | W75: 0 | X75: 0 | Y75: 0 | Z75: 0 | AA75: 0 | AB75: 0 | AC75: Ok
A76: FOLICUR (T) EC250 20X500ML BOT IN | B76: 0 | C76: 0 | D76: 0 | E76: 0 | F76: 0 | G76: 0 | H76: 0 | I76: 0 | J76: 0 | K76: 0 | L76: 0 | M76: 0 | N76: 0 | O76: 0 | P76: 0 | Q76: 0 | R76: 0 | S76: 0 | T76: 0 | U76: 0 | V76: 0 | W76: 0 | X76: 0 | Y76: 0 | Z76: 0 | AA76: 0 | AB76: 0 | AC76: Ok
A77: LARVIN (T) WP75 20X250GR BAG IN | B77: 0 | C77: 0 | D77: 0 | E77: 0 | F77: 0 | G77: 0 | H77: 0 | I77: 0 | J77: 0 | K77: 0 | L77: 0 | M77: 0 | N77: 0 | O77: 0 | P77: 0 | Q77: 0 | R77: 0 | S77: 0 | T77: 0 | U77: 0 | V77: 0 | W77: 0 | X77: 0 | Y77: 0 | Z77: 0 | AA77: 0 | AB77: 0 | AC77: Ok
A78: MELODY DUO WP66 8 10X800G BAG IN | B78: 0 | C78: 0 | D78: 0 | E78: 0 | F78: 0 | G78: 0 | H78: 0 | I78: 0 | J78: 0 | K78: 0 | L78: 0 | M78: 0 | N78: 0 | O78: 0 | P78: 0 | Q78: 0 | R78: 0 | S78: 0 | T78: 0 | U78: 0 | V78: 0 | W78: 0 | X78: 0 | Y78: 0 | Z78: 0 | AA78: 0 | AB78: 0 | AC78: Ok
A79: MOVENTO ENERGY SC240 40X250ML BOT IN | B79: 0 | C79: 0 | D79: 0 | E79: 0 | F79: 0 | G79: 0 | H79: 0 | I79: 0 | J79: 0 | K79: 0 | L79: 0 | M79: 0 | N79: 0 | O79: 0 | P79: 0 | Q79: 0 | R79: 0 | S79: 0 | T79: 0 | U79: 0 | V79: 0 | W79: 0 | X79: 0 | Y79: 0 | Z79: 0 | AA79: 0 | AB79: 0 | AC79: Ok
A80: REGENT GOLD SC200 40X250ML BOT IN | B80: 0 | C80: 0 | D80: 0 | E80: 0 | F80: 0 | G80: 0 | H80: 0 | I80: 0 | J80: 0 | K80: 0 | L80: 0 | M80: 0 | N80: 0 | O80: 0 | P80: 0 | Q80: 0 | R80: 0 | S80: 0 | T80: 0 | U80: 0 | V80: 0 | W80: 0 | X80: 0 | Y80: 0 | Z80: 0 | AA80: 0 | AB80: 0 | AC80: Ok
A81: REGENT GOLD SC200 50X100ML BOT IN | B81: 0 | C81: 0 | D81: 0 | E81: 0 | F81: 0 | G81: 0 | H81: 0 | I81: 0 | J81: 0 | K81: 0 | L81: 0 | M81: 0 | N81: 0 | O81: 0 | P81: 0 | Q81: 0 | R81: 0 | S81: 0 | T81: 0 | U81: 0 | V81: 0 | W81: 0 | X81: 0 | Y81: 0 | Z81: 0 | AA81: 0 | AB81: 0 | AC81: Ok
A82: REGENT ULTRA GR0 6 5X4KG BAG IN | B82: 0 | C82: 0 | D82: 0 | E82: 0 | F82: 0 | G82: 0 | H82: 0 | I82: 0 | J82: 0 | K82: 0 | L82: 0 | M82: 0 | N82: 0 | O82: 0 | P82: 0 | Q82: 0 | R82: 0 | S82: 0 | T82: 0 | U82: 0 | V82: 0 | W82: 0 | X82: 0 | Y82: 0 | Z82: 0 | AA82: 0 | AB82: 0 | AC82: Ok
A83: SECTIN WG60 10X1KG BAG IN | B83: 0 | C83: 0 | D83: 0 | E83: 0 | F83: 0 | G83: 0 | H83: 0 | I83: 0 | J83: 0 | K83: 0 | L83: 0 | M83: 0 | N83: 0 | O83: 0 | P83: 0 | Q83: 0 | R83: 0 | S83: 0 | T83: 0 | U83: 0 | V83: 0 | W83: 0 | X83: 0 | Y83: 0 | Z83: 0 | AA83: 0 | AB83: 0 | AC83: Ok
A84: SURPASS SUPERB BG2 20X450G BAG IN | B84: 0 | C84: 0 | D84: 0 | E84: 0 | F84: 0 | G84: 0 | H84: 0 | I84: 0 | J84: 0 | K84: 0 | L84: 0 | M84: 0 | N84: 0 | O84: 0 | P84: 0 | Q84: 0 | R84: 0 | S84: 0 | T84: 0 | U84: 0 | V84: 0 | W84: 0 | X84: 0 | Y84: 0 | Z84: 0 | AA84: 0 | AB84: 0 | AC84: Ok
A85: TOPSTAR (T) WP80 4X(10X100GR) BOX IN | B85: 0 | C85: 0 | D85: 0 | E85: 0 | F85: 0 | G85: 0 | H85: 0 | I85: 0 | J85: 0 | K85: 0 | L85: 0 | M85: 0 | N85: 0 | O85: 0 | P85: 0 | Q85: 0 | R85: 0 | S85: 0 | T85: 0 | U85: 0 | V85: 0 | W85: 0 | X85: 0 | Y85: 0 | Z85: 0 | AA85: 0 | AB85: 0 | AC85: Ok
A86: Total | B86: =SUM(B4:B85) -> 1885 | C86: =SUM(C4:C85) -> 9811 | D86: 0 | E86: 6331 | F86: 0 | G86: 0 | H86: 0 | I86: 0 | J86: 5365 | K86: 1885 | L86: 9811 | M86: 0 | N86: 6319 | O86: 0 | P86: 0 | Q86: 0 | R86: 0 | S86: 5377 | T86: 0 | U86: 0 | V86: 0 | W86: 12 | X86: 0 | Y86: 0 | Z86: 0 | AA86: 0 | AB86: -12
